{"text_format":"1","workbook":"xlsx","n_sheets":9,"sheets":["P_Total","B","P (1)","E","Progr","PomoshtenSheet","Klasif","Inf","P"],"not_rendered":{"charts":0,"images":0,"macros":1,"external_links":0,"defined_names":16,"comments":0,"pivot_tables":0},"unopened":[],"bounds":{"document_bytes":16777216,"sheet_cells":100000,"rows_first":2000,"rows_last":500,"rows_between":2000,"halvings":0,"cell_chars":16384,"cell_head_chars":4096},"cells_cut":0,"cells_raw":0,"read":"whole","date_system":"1900"}

{"sheet":"P_Total","index":0,"n_rows":84,"n_cols":10,"rows_kept":84,"cut":false,"hidden":false,"merged":[]}
[1]
[1,null,"Разшифровка на ведомствените и администрираните разходи по"]
[1,null,"бюджетни програми за 2026 година"]
[1,null,"на Комисия за регулиране на съобщенията"]
[1]
[1]
[1]
[1,null,"П О К А З А Т Е Л И",null,"Закон","Уточнен","Отчет","Отчет","Отчет","Отчет"]
[1,null,null,null,null,"план","към 31 март","към 30 юни","към 30 септември","към 31 декември"]
[1,null,"(в евро)",null,"2026 г.",{"$f":"$E$10","v":"2026 г."},{"$f":"$E$10","v":"2026 г."},{"$f":"$E$10","v":"2026 г."},{"$f":"$E$10","v":"2026 г."},{"$f":"$E$10","v":"2026 г."}]
[1]
[1,null," A",null,1,{"$f":"E12+1","v":2},{"$f":"F12+1","v":3},{"$f":"G12+1","v":4},{"$f":"H12+1","v":5},{"$f":"I12+1","v":6}]
[1]
[1,null,"РАЗХОДИ - ВСИЧКО","02",{"$f":"E16","v":0},0,2009248,5793612,0,0]
[1]
[1,null,"Общо разходи",null,{"$f":"SUBTOTAL(9,E17:E71)","v":0},0,2009248,5793612,0,0]
[1,"1.","Общо ведомствени разходи",null,{"$f":"SUBTOTAL(9,E18:E36)","v":0},0,1959530,5743894,0,0]
[{"$f":"IF(MAX(E18:J18)=0,IF(MIN(E18:J18)=0,3,2),2)","v":2},null,"   Персонал",null,{"$f":"SUBTOTAL(9,E19:E22)","v":0},0,1645601,3476314,0,0]
[2,null,"      Заплати и възнаграждения за персонала, нает по трудови и\n      служебни правоотношения","01-00",{"$f":"SUM(B:E!E19)","v":0},{"$f":"SUM(B:E!F19)","v":0},{"$f":"SUM(B:E!G19)","v":1234341},{"$f":"SUM(B:E!H19)","v":2652148},{"$f":"SUM(B:E!I19)","v":0},{"$f":"SUM(B:E!J19)","v":0}]
[2,null,"      Други възнаграждения и плащания за персонала","02-00",{"$f":"SUM(B:E!E20)","v":0},{"$f":"SUM(B:E!F20)","v":0},{"$f":"SUM(B:E!G20)","v":56299},{"$f":"SUM(B:E!H20)","v":86622},{"$f":"SUM(B:E!I20)","v":0},{"$f":"SUM(B:E!J20)","v":0}]
[2,null,"      Задължителни осигурителни вноски от работодатели","05-00",{"$f":"SUM(B:E!E21)","v":0},{"$f":"SUM(B:E!F21)","v":0},{"$f":"SUM(B:E!G21)","v":354961},{"$f":"SUM(B:E!H21)","v":737544},{"$f":"SUM(B:E!I21)","v":0},{"$f":"SUM(B:E!J21)","v":0}]
[3,null,"      Вноски за доброволно осигуряване","08-00",{"$f":"SUM(B:E!E22)","v":0},{"$f":"SUM(B:E!F22)","v":0},{"$f":"SUM(B:E!G22)","v":0},{"$f":"SUM(B:E!H22)","v":0},{"$f":"SUM(B:E!I22)","v":0},{"$f":"SUM(B:E!J22)","v":0}]
[2,null,"   Издръжка",null,{"$f":"SUBTOTAL(9,E24:E30)","v":0},0,309227,716039,0,0]
[2,null,"      Издръжка","10-00",{"$f":"SUM(B:E!E24)","v":0},{"$f":"SUM(B:E!F24)","v":0},{"$f":"SUM(B:E!G24)","v":307711},{"$f":"SUM(B:E!H24)","v":684375},{"$f":"SUM(B:E!I24)","v":0},{"$f":"SUM(B:E!J24)","v":0}]
[{"$f":"IF(MAX(E25:J25)=0,IF(MIN(E25:J25)=0,3,2),2)","v":2},null,"      Платени данъци, такси и административни санкции","19-00",{"$f":"SUM(B:E!E25)","v":0},{"$f":"SUM(B:E!F25)","v":0},{"$f":"SUM(B:E!G25)","v":1516},{"$f":"SUM(B:E!H25)","v":31664},{"$f":"SUM(B:E!I25)","v":0},{"$f":"SUM(B:E!J25)","v":0}]
[3,null,"      Лихви",null,{"$f":"SUBTOTAL(9,E27:E28)","v":0},0,0,0,0,0]
[3,null,"         Лихви по външни заеми",null,{"$f":"SUM(B:E!E27)","v":0},{"$f":"SUM(B:E!F27)","v":0},{"$f":"SUM(B:E!G27)","v":0},{"$f":"SUM(B:E!H27)","v":0},{"$f":"SUM(B:E!I27)","v":0},{"$f":"SUM(B:E!J27)","v":0}]
[3,null,"         Лихви по вътрешни заеми",null,{"$f":"SUM(B:E!E28)","v":0},{"$f":"SUM(B:E!F28)","v":0},{"$f":"SUM(B:E!G28)","v":0},{"$f":"SUM(B:E!H28)","v":0},{"$f":"SUM(B:E!I28)","v":0},{"$f":"SUM(B:E!J28)","v":0}]
[{"$f":"IF(MAX(E29:J29)=0,IF(MIN(E29:J29)=0,3,2),2)","v":3},null,"      Текущи трансфери, обезщетения и помощи за домакинствата","42-00",{"$f":"SUM(B:E!E29)","v":0},{"$f":"SUM(B:E!F29)","v":0},{"$f":"SUM(B:E!G29)","v":0},{"$f":"SUM(B:E!H29)","v":0},{"$f":"SUM(B:E!I29)","v":0},{"$f":"SUM(B:E!J29)","v":0}]
[3,null,"      Разходи за членски внос и участие в нетърговски организации и\n      дейности","46-00",{"$f":"SUM(B:E!E30)","v":0},{"$f":"SUM(B:E!F30)","v":0},{"$f":"SUM(B:E!G30)","v":0},{"$f":"SUM(B:E!H30)","v":0},{"$f":"SUM(B:E!I30)","v":0},{"$f":"SUM(B:E!J30)","v":0}]
[2,null,"   Капиталови разходи",null,{"$f":"SUBTOTAL(9,E32:E36)","v":0},0,4702,1551541,0,0]
[2,null,"      Основен ремонт на дълготрайни материални активи","51-00",{"$f":"SUM(B:E!E32)","v":0},{"$f":"SUM(B:E!F32)","v":0},{"$f":"SUM(B:E!G32)","v":4702},{"$f":"SUM(B:E!H32)","v":4702},{"$f":"SUM(B:E!I32)","v":0},{"$f":"SUM(B:E!J32)","v":0}]
[2,null,"      Придобиване на дълготрайни материални активи","52-00",{"$f":"SUM(B:E!E33)","v":0},{"$f":"SUM(B:E!F33)","v":0},{"$f":"SUM(B:E!G33)","v":0},{"$f":"SUM(B:E!H33)","v":1546839},{"$f":"SUM(B:E!I33)","v":0},{"$f":"SUM(B:E!J33)","v":0}]
[3,null,"      Придобиване на нематериални дълготрайни активи","53-00",{"$f":"SUM(B:E!E34)","v":0},{"$f":"SUM(B:E!F34)","v":0},{"$f":"SUM(B:E!G34)","v":0},{"$f":"SUM(B:E!H34)","v":0},{"$f":"SUM(B:E!I34)","v":0},{"$f":"SUM(B:E!J34)","v":0}]
[3,null,"      Придобиване на земя","54-00",{"$f":"SUM(B:E!E35)","v":0},{"$f":"SUM(B:E!F35)","v":0},{"$f":"SUM(B:E!G35)","v":0},{"$f":"SUM(B:E!H35)","v":0},{"$f":"SUM(B:E!I35)","v":0},{"$f":"SUM(B:E!J35)","v":0}]
[3,null,"      Капиталови трансфери","55-00",{"$f":"SUM(B:E!E36)","v":0},{"$f":"SUM(B:E!F36)","v":0},{"$f":"SUM(B:E!G36)","v":0},{"$f":"SUM(B:E!H36)","v":0},{"$f":"SUM(B:E!I36)","v":0},{"$f":"SUM(B:E!J36)","v":0}]
[1,"2.","Администрирани разходни параграфи по бюджета",null,{"$f":"SUBTOTAL(9,E38:E70)","v":0},0,49718,49718,0,0]
[{"$f":"IF(MAX(E38:J38)=0,IF(MIN(E38:J38)=0,3,2),2)","v":2},null,"Текущи разходи",null,{"$f":"SUBTOTAL(9,E39:E57)","v":0},0,49718,49718,0,0]
[3,null,"Персонал",null,{"$f":"SUBTOTAL(9,E40:E43)","v":0},0,0,0,0,0]
[{"$f":"IF(MAX(E40:J40)=0,IF(MIN(E40:J40)=0,3,2),2)","v":3},null,"Заплати и възнаграждения за персонала, нает по трудови и служебни правоотношения","01-00",{"$f":"SUM(B:E!E40)","v":0},{"$f":"SUM(B:E!F40)","v":0},{"$f":"SUM(B:E!G40)","v":0},{"$f":"SUM(B:E!H40)","v":0},{"$f":"SUM(B:E!I40)","v":0},{"$f":"SUM(B:E!J40)","v":0}]
[{"$f":"IF(MAX(E41:J41)=0,IF(MIN(E41:J41)=0,3,2),2)","v":3},null,"Други възнаграждения и плащания за персонала","02-00",{"$f":"SUM(B:E!E41)","v":0},{"$f":"SUM(B:E!F41)","v":0},{"$f":"SUM(B:E!G41)","v":0},{"$f":"SUM(B:E!H41)","v":0},{"$f":"SUM(B:E!I41)","v":0},{"$f":"SUM(B:E!J41)","v":0}]
[3,null,"Задължителни осигурителни вноски от работодатели","05-00",{"$f":"SUM(B:E!E42)","v":0},{"$f":"SUM(B:E!F42)","v":0},{"$f":"SUM(B:E!G42)","v":0},{"$f":"SUM(B:E!H42)","v":0},{"$f":"SUM(B:E!I42)","v":0},{"$f":"SUM(B:E!J42)","v":0}]
[3,null,"Вноски за доброволно осигуряване","08-00",{"$f":"SUM(B:E!E43)","v":0},{"$f":"SUM(B:E!F43)","v":0},{"$f":"SUM(B:E!G43)","v":0},{"$f":"SUM(B:E!H43)","v":0},{"$f":"SUM(B:E!I43)","v":0},{"$f":"SUM(B:E!J43)","v":0}]
[3,null,"Издръжка","10-00",{"$f":"SUM(B:E!E44)","v":0},{"$f":"SUM(B:E!F44)","v":0},{"$f":"SUM(B:E!G44)","v":0},{"$f":"SUM(B:E!H44)","v":0},{"$f":"SUM(B:E!I44)","v":0},{"$f":"SUM(B:E!J44)","v":0}]
[{"$f":"IF(MAX(E45:J45)=0,IF(MIN(E45:J45)=0,3,2),2)","v":3},null,"Платени данъци, такси и административни санкции","19-00",{"$f":"SUM(B:E!E45)","v":0},{"$f":"SUM(B:E!F45)","v":0},{"$f":"SUM(B:E!G45)","v":0},{"$f":"SUM(B:E!H45)","v":0},{"$f":"SUM(B:E!I45)","v":0},{"$f":"SUM(B:E!J45)","v":0}]
[3,null,"Лихви",null,{"$f":"SUBTOTAL(9,E47:E48)","v":0},0,0,0,0,0]
[3,null,"Лихви по външни заеми",null,{"$f":"SUM(B:E!E47)","v":0},{"$f":"SUM(B:E!F47)","v":0},{"$f":"SUM(B:E!G47)","v":0},{"$f":"SUM(B:E!H47)","v":0},{"$f":"SUM(B:E!I47)","v":0},{"$f":"SUM(B:E!J47)","v":0}]
[3,null,"Лихви по вътрешни заеми",null,{"$f":"SUM(B:E!E48)","v":0},{"$f":"SUM(B:E!F48)","v":0},{"$f":"SUM(B:E!G48)","v":0},{"$f":"SUM(B:E!H48)","v":0},{"$f":"SUM(B:E!I48)","v":0},{"$f":"SUM(B:E!J48)","v":0}]
[3,null,"Здравноосигурителни плащания","39-00",{"$f":"SUM(B:E!E49)","v":0},{"$f":"SUM(B:E!F49)","v":0},{"$f":"SUM(B:E!G49)","v":0},{"$f":"SUM(B:E!H49)","v":0},{"$f":"SUM(B:E!I49)","v":0},{"$f":"SUM(B:E!J49)","v":0}]
[3,null,"Стипендии","40-00",{"$f":"SUM(B:E!E50)","v":0},{"$f":"SUM(B:E!F50)","v":0},{"$f":"SUM(B:E!G50)","v":0},{"$f":"SUM(B:E!H50)","v":0},{"$f":"SUM(B:E!I50)","v":0},{"$f":"SUM(B:E!J50)","v":0}]
[3,null,"Пенсии","41-00",{"$f":"SUM(B:E!E51)","v":0},{"$f":"SUM(B:E!F51)","v":0},{"$f":"SUM(B:E!G51)","v":0},{"$f":"SUM(B:E!H51)","v":0},{"$f":"SUM(B:E!I51)","v":0},{"$f":"SUM(B:E!J51)","v":0}]
[3,null,"Текущи трансфери, обезщетения и помощи за домакинствата","42-00",{"$f":"SUM(B:E!E52)","v":0},{"$f":"SUM(B:E!F52)","v":0},{"$f":"SUM(B:E!G52)","v":0},{"$f":"SUM(B:E!H52)","v":0},{"$f":"SUM(B:E!I52)","v":0},{"$f":"SUM(B:E!J52)","v":0}]
[3,null,"Субсидии и други текущи трансфери за нефинансови предприятия","43-00",{"$f":"SUM(B:E!E53)","v":0},{"$f":"SUM(B:E!F53)","v":0},{"$f":"SUM(B:E!G53)","v":0},{"$f":"SUM(B:E!H53)","v":0},{"$f":"SUM(B:E!I53)","v":0},{"$f":"SUM(B:E!J53)","v":0}]
[3,null,"Субсидии и други текущи трансфери за осъществяване на болнична помощ ","43-02",{"$f":"SUM(B:E!E54)","v":0},{"$f":"SUM(B:E!F54)","v":0},{"$f":"SUM(B:E!G54)","v":0},{"$f":"SUM(B:E!H54)","v":0},{"$f":"SUM(B:E!I54)","v":0},{"$f":"SUM(B:E!J54)","v":0}]
[{"$f":"IF(MAX(E55:J55)=0,IF(MIN(E55:J55)=0,3,2),2)","v":3},null,"Субсидии и други текущи трансфери за финансови институции","44-00",{"$f":"SUM(B:E!E55)","v":0},{"$f":"SUM(B:E!F55)","v":0},{"$f":"SUM(B:E!G55)","v":0},{"$f":"SUM(B:E!H55)","v":0},{"$f":"SUM(B:E!I55)","v":0},{"$f":"SUM(B:E!J55)","v":0}]
[3,null,"Субсидии и други текущи трансфери за юридически лица с нестопанска цел","45-00",{"$f":"SUM(B:E!E56)","v":0},{"$f":"SUM(B:E!F56)","v":0},{"$f":"SUM(B:E!G56)","v":0},{"$f":"SUM(B:E!H56)","v":0},{"$f":"SUM(B:E!I56)","v":0},{"$f":"SUM(B:E!J56)","v":0}]
[2,null,"Разходи за членски внос и участие в нетърговски организации и дейности","46-00",{"$f":"SUM(B:E!E57)","v":0},{"$f":"SUM(B:E!F57)","v":0},{"$f":"SUM(B:E!G57)","v":49718},{"$f":"SUM(B:E!H57)","v":49718},{"$f":"SUM(B:E!I57)","v":0},{"$f":"SUM(B:E!J57)","v":0}]
[3,null,"Предоставени текущи и капиталови трансфери за чужбина","49-00",{"$f":"SUBTOTAL(9,E59:E60)","v":0},0,0,0,0,0]
[{"$f":"IF(MAX(E59:J59)=0,IF(MIN(E59:J59)=0,3,2),2)","v":3},null,"Текущи трансфери за чужбина","49-01",{"$f":"SUM(B:E!E59)","v":0},{"$f":"SUM(B:E!F59)","v":0},{"$f":"SUM(B:E!G59)","v":0},{"$f":"SUM(B:E!H59)","v":0},{"$f":"SUM(B:E!I59)","v":0},{"$f":"SUM(B:E!J59)","v":0}]
[{"$f":"IF(MAX(E60:J60)=0,IF(MIN(E60:J60)=0,3,2),2)","v":3},null,"Капиталови трансфери за чужбина","49-02",{"$f":"SUM(B:E!E60)","v":0},{"$f":"SUM(B:E!F60)","v":0},{"$f":"SUM(B:E!G60)","v":0},{"$f":"SUM(B:E!H60)","v":0},{"$f":"SUM(B:E!I60)","v":0},{"$f":"SUM(B:E!J60)","v":0}]
[3,null,"Капиталови разходи",null,{"$f":"SUBTOTAL(9,E62:E66)","v":0},0,0,0,0,0]
[3,null,"Основен ремонт на дълготрайни материални активи","51-00",{"$f":"SUM(B:E!E62)","v":0},{"$f":"SUM(B:E!F62)","v":0},{"$f":"SUM(B:E!G62)","v":0},{"$f":"SUM(B:E!H62)","v":0},{"$f":"SUM(B:E!I62)","v":0},{"$f":"SUM(B:E!J62)","v":0}]
[3,null,"Придобиване на дълготрайни материални активи","52-00",{"$f":"SUM(B:E!E63)","v":0},{"$f":"SUM(B:E!F63)","v":0},{"$f":"SUM(B:E!G63)","v":0},{"$f":"SUM(B:E!H63)","v":0},{"$f":"SUM(B:E!I63)","v":0},{"$f":"SUM(B:E!J63)","v":0}]
[3,null,"Придобиване на нематериални дълготрайни активи","53-00",{"$f":"SUM(B:E!E64)","v":0},{"$f":"SUM(B:E!F64)","v":0},{"$f":"SUM(B:E!G64)","v":0},{"$f":"SUM(B:E!H64)","v":0},{"$f":"SUM(B:E!I64)","v":0},{"$f":"SUM(B:E!J64)","v":0}]
[3,null,"Придобиване на земя","54-00",{"$f":"SUM(B:E!E65)","v":0},{"$f":"SUM(B:E!F65)","v":0},{"$f":"SUM(B:E!G65)","v":0},{"$f":"SUM(B:E!H65)","v":0},{"$f":"SUM(B:E!I65)","v":0},{"$f":"SUM(B:E!J65)","v":0}]
[3,null,"Капиталови трансфери","55-00",{"$f":"SUM(B:E!E66)","v":0},{"$f":"SUM(B:E!F66)","v":0},{"$f":"SUM(B:E!G66)","v":0},{"$f":"SUM(B:E!H66)","v":0},{"$f":"SUM(B:E!I66)","v":0},{"$f":"SUM(B:E!J66)","v":0}]
[3,null,"Прираст на държавния резерв и изкупуване на земеделска продукция",null,{"$f":"SUBTOTAL(9,E68:E70)","v":0},0,0,0,0,0]
[3,null,"Плащания за попълване на държавния резерв","57-01",{"$f":"SUM(B:E!E68)","v":0},{"$f":"SUM(B:E!F68)","v":0},{"$f":"SUM(B:E!G68)","v":0},{"$f":"SUM(B:E!H68)","v":0},{"$f":"SUM(B:E!I68)","v":0},{"$f":"SUM(B:E!J68)","v":0}]
[3,null,"Постъпления от продажба на държавния резерв (-)","40-71",{"$f":"SUM(B:E!E69)","v":0},{"$f":"SUM(B:E!F69)","v":0},{"$f":"SUM(B:E!G69)","v":0},{"$f":"SUM(B:E!H69)","v":0},{"$f":"SUM(B:E!I69)","v":0},{"$f":"SUM(B:E!J69)","v":0}]
[3,null,"Плащания за изкупуване на земеделска продукция","57-02",{"$f":"SUM(B:E!E70)","v":0},{"$f":"SUM(B:E!F70)","v":0},{"$f":"SUM(B:E!G70)","v":0},{"$f":"SUM(B:E!H70)","v":0},{"$f":"SUM(B:E!I70)","v":0},{"$f":"SUM(B:E!J70)","v":0}]
[3,"3.","Резерв за непредвидени и неотложни разходи","00-98",{"$f":"SUM(B:E!E71)","v":0},{"$f":"SUM(B:E!F71)","v":0},{"$f":"SUM(B:E!G71)","v":0},{"$f":"SUM(B:E!H71)","v":0},{"$f":"SUM(B:E!I71)","v":0},{"$f":"SUM(B:E!J71)","v":0}]
[1]
[1,null,"НАТУРАЛНИ ПОКАЗАТЕЛИ"]
[{"$f":"IF(MAX(E74:J74)=0,IF(MIN(E74:J74)=0,3,2),2)","v":2},null,"Щатни бройки - общо",null,{"$f":"E76+E82","v":0},0,216,218,0,0]
[2,null,"Средногодишни щатни бройки - общо",null,{"$f":"E79+E83","v":0},0,214,217,0,0]
[2,null,"Щатни бройки",null,{"$f":"SUM(E77:E78)","v":0},0,216,218,0,0]
[2,null,"по трудови правоотношения",null,{"$f":"SUM(B:E!E77)","v":0},{"$f":"SUM(B:E!F77)","v":0},{"$f":"SUM(B:E!G77)","v":20},{"$f":"SUM(B:E!H77)","v":19},{"$f":"SUM(B:E!I77)","v":0},{"$f":"SUM(B:E!J77)","v":0}]
[2,null,"по служебни правоотношения",null,{"$f":"SUM(B:E!E78)","v":0},{"$f":"SUM(B:E!F78)","v":0},{"$f":"SUM(B:E!G78)","v":196},{"$f":"SUM(B:E!H78)","v":199},{"$f":"SUM(B:E!I78)","v":0},{"$f":"SUM(B:E!J78)","v":0}]
[2,null,"Средногодишни щатни бройки",null,{"$f":"SUM(E80:E81)","v":0},0,214,217,0,0]
[2,null,"по  трудови правоотношения",null,{"$f":"SUM(B:E!E80)","v":0},{"$f":"SUM(B:E!F80)","v":0},{"$f":"SUM(B:E!G80)","v":19},{"$f":"SUM(B:E!H80)","v":19},{"$f":"SUM(B:E!I80)","v":0},{"$f":"SUM(B:E!J80)","v":0}]
[2,null,"по  служебни правоотношения",null,{"$f":"SUM(B:E!E81)","v":0},{"$f":"SUM(B:E!F81)","v":0},{"$f":"SUM(B:E!G81)","v":195},{"$f":"SUM(B:E!H81)","v":198},{"$f":"SUM(B:E!I81)","v":0},{"$f":"SUM(B:E!J81)","v":0}]
[{"$f":"IF(MAX(E82:J82)=0,IF(MIN(E82:J82)=0,3,2),2)","v":3},null,"Щатни бройки на делегирани бюджети",null,{"$f":"SUM(B:E!E82)","v":0},{"$f":"SUM(B:E!F82)","v":0},{"$f":"SUM(B:E!G82)","v":0},{"$f":"SUM(B:E!H82)","v":0},{"$f":"SUM(B:E!I82)","v":0},{"$f":"SUM(B:E!J82)","v":0}]
[{"$f":"IF(MAX(E83:J83)=0,IF(MIN(E83:J83)=0,3,2),2)","v":3},null,"Средногодишни щатни бройки на делегирани бюджети",null,{"$f":"SUM(B:E!E83)","v":0},{"$f":"SUM(B:E!F83)","v":0},{"$f":"SUM(B:E!G83)","v":0},{"$f":"SUM(B:E!H83)","v":0},{"$f":"SUM(B:E!I83)","v":0},{"$f":"SUM(B:E!J83)","v":0}]
[1]

{"sheet":"B","index":1,"n_rows":0,"n_cols":0,"rows_kept":0,"cut":false,"hidden":true,"merged":[]}

{"sheet":"P (1)","index":2,"n_rows":84,"n_cols":10,"rows_kept":84,"cut":false,"hidden":false,"merged":[]}
[1]
[1]
[1]
[1,"Код 4300.01.01","Бюджетна програма \"Регулиране не електронните съобщения и пощенските услуги\""]
[1,"Код 4300.01.00","към функционална област \"Електронни съобщения и пощенски услуги\""]
[1]
[1]
[1,null,{"$f":"IF(ISBLANK(P_Total!C8),\" \",P_Total!C8)","v":"П О К А З А Т Е Л И"},{"$f":"IF(ISBLANK(P_Total!D8),\" \",P_Total!D8)","v":" "},{"$f":"IF(ISBLANK(P_Total!E8),\" \",P_Total!E8)","v":"Закон"},{"$f":"IF(ISBLANK(P_Total!F8),\" \",P_Total!F8)","v":"Уточнен"},{"$f":"IF(ISBLANK(P_Total!G8),\" \",P_Total!G8)","v":"Отчет"},{"$f":"IF(ISBLANK(P_Total!H8),\" \",P_Total!H8)","v":"Отчет"},{"$f":"IF(ISBLANK(P_Total!I8),\" \",P_Total!I8)","v":"Отчет"},{"$f":"IF(ISBLANK(P_Total!J8),\" \",P_Total!J8)","v":"Отчет"}]
[1,null,{"$f":"IF(ISBLANK(P_Total!C9),\" \",P_Total!C9)","v":" "},{"$f":"IF(ISBLANK(P_Total!D9),\" \",P_Total!D9)","v":" "},{"$f":"IF(ISBLANK(P_Total!E9),\" \",P_Total!E9)","v":" "},{"$f":"IF(ISBLANK(P_Total!F9),\" \",P_Total!F9)","v":"план"},{"$f":"IF(ISBLANK(P_Total!G9),\" \",P_Total!G9)","v":"към 31 март"},{"$f":"IF(ISBLANK(P_Total!H9),\" \",P_Total!H9)","v":"към 30 юни"},{"$f":"IF(ISBLANK(P_Total!I9),\" \",P_Total!I9)","v":"към 30 септември"},{"$f":"IF(ISBLANK(P_Total!J9),\" \",P_Total!J9)","v":"към 31 декември"}]
[1,null,{"$f":"IF(ISBLANK(P_Total!C10),\" \",P_Total!C10)","v":"(в евро)"},{"$f":"IF(ISBLANK(P_Total!D10),\" \",P_Total!D10)","v":" "},{"$f":"IF(ISBLANK(P_Total!E10),\" \",P_Total!E10)","v":"2026 г."},{"$f":"IF(ISBLANK(P_Total!F10),\" \",P_Total!F10)","v":"2026 г."},{"$f":"IF(ISBLANK(P_Total!G10),\" \",P_Total!G10)","v":"2026 г."},{"$f":"IF(ISBLANK(P_Total!H10),\" \",P_Total!H10)","v":"2026 г."},{"$f":"IF(ISBLANK(P_Total!I10),\" \",P_Total!I10)","v":"2026 г."},{"$f":"IF(ISBLANK(P_Total!J10),\" \",P_Total!J10)","v":"2026 г."}]
[1,null,{"$f":"IF(ISBLANK(P_Total!C11),\" \",P_Total!C11)","v":" "},{"$f":"IF(ISBLANK(P_Total!D11),\" \",P_Total!D11)","v":" "},{"$f":"IF(ISBLANK(P_Total!E11),\" \",P_Total!E11)","v":" "},{"$f":"IF(ISBLANK(P_Total!F11),\" \",P_Total!F11)","v":" "},{"$f":"IF(ISBLANK(P_Total!G11),\" \",P_Total!G11)","v":" "},{"$f":"IF(ISBLANK(P_Total!H11),\" \",P_Total!H11)","v":" "},{"$f":"IF(ISBLANK(P_Total!I11),\" \",P_Total!I11)","v":" "},{"$f":"IF(ISBLANK(P_Total!J11),\" \",P_Total!J11)","v":" "}]
[1,null,{"$f":"IF(ISBLANK(P_Total!C12),\" \",P_Total!C12)","v":" A"},{"$f":"IF(ISBLANK(P_Total!D12),\" \",P_Total!D12)","v":" "},{"$f":"IF(ISBLANK(P_Total!E12),\" \",P_Total!E12)","v":1},{"$f":"IF(ISBLANK(P_Total!F12),\" \",P_Total!F12)","v":2},{"$f":"IF(ISBLANK(P_Total!G12),\" \",P_Total!G12)","v":3},{"$f":"IF(ISBLANK(P_Total!H12),\" \",P_Total!H12)","v":4},{"$f":"IF(ISBLANK(P_Total!I12),\" \",P_Total!I12)","v":5},{"$f":"IF(ISBLANK(P_Total!J12),\" \",P_Total!J12)","v":6}]
[1]
[1,null,"РАЗХОДИ - ВСИЧКО","02",{"$f":"E16","v":0},0,2009248,5793612,0,0]
[1]
[1,null,"Общо разходи",null,{"$f":"SUBTOTAL(9,E17:E71)","v":0},0,2009248,5793612,0,0]
[1,"1.","Общо ведомствени разходи",null,{"$f":"SUBTOTAL(9,E18:E36)","v":0},0,1959530,5743894,0,0]
[{"$f":"IF(MAX(E18:J18)=0,IF(MIN(E18:J18)=0,3,2),2)","v":2},null,"   Персонал",null,{"$f":"SUBTOTAL(9,E19:E22)","v":0},0,1645601,3476314,0,0]
[2,null,"      Заплати и възнаграждения за персонала, нает по трудови и\n      служебни правоотношения","01-00",null,null,1234341,2652148]
[2,null,"      Други възнаграждения и плащания за персонала","02-00",null,null,56299,86622]
[2,null,"      Задължителни осигурителни вноски от работодатели","05-00",null,null,354961,737544]
[3,null,"      Вноски за доброволно осигуряване","08-00"]
[2,null,"   Издръжка",null,{"$f":"SUBTOTAL(9,E24:E30)","v":0},0,309227,716039,0,0]
[2,null,"      Издръжка","10-00",null,null,307711,684375]
[{"$f":"IF(MAX(E25:J25)=0,IF(MIN(E25:J25)=0,3,2),2)","v":2},null,"      Платени данъци, такси и административни санкции","19-00",null,null,1516,31664]
[3,null,"      Лихви",null,{"$f":"SUBTOTAL(9,E27:E28)","v":0},0,0,0,0,0]
[3,null,"         Лихви по външни заеми"]
[3,null,"         Лихви по вътрешни заеми"]
[{"$f":"IF(MAX(E29:J29)=0,IF(MIN(E29:J29)=0,3,2),2)","v":3},null,"      Текущи трансфери, обезщетения и помощи за домакинствата","42-00"]
[3,null,"      Разходи за членски внос и участие в нетърговски организации и\n      дейности","46-00"]
[2,null,"   Капиталови разходи",null,{"$f":"SUBTOTAL(9,E32:E36)","v":0},0,4702,1551541,0,0]
[2,null,"      Основен ремонт на дълготрайни материални активи","51-00",null,null,4702,4702]
[2,null,"      Придобиване на дълготрайни материални активи","52-00",null,null,null,1546839]
[3,null,"      Придобиване на нематериални дълготрайни активи","53-00"]
[3,null,"      Придобиване на земя","54-00"]
[3,null,"      Капиталови трансфери","55-00"]
[1,"2.","Администрирани разходни параграфи по бюджета",null,{"$f":"SUBTOTAL(9,E38:E70)","v":0},0,49718,49718,0,0]
[{"$f":"IF(MAX(E38:J38)=0,IF(MIN(E38:J38)=0,3,2),2)","v":2},null,"Текущи разходи",null,{"$f":"SUBTOTAL(9,E39:E57)","v":0},0,49718,49718,0,0]
[3,null,"Персонал",null,{"$f":"SUBTOTAL(9,E40:E43)","v":0},0,0,0,0,0]
[{"$f":"IF(MAX(E40:J40)=0,IF(MIN(E40:J40)=0,3,2),2)","v":3},null,"Заплати и възнаграждения за персонала, нает по трудови и служебни правоотношения","01-00"]
[{"$f":"IF(MAX(E41:J41)=0,IF(MIN(E41:J41)=0,3,2),2)","v":3},null,"Други възнаграждения и плащания за персонала","02-00"]
[3,null,"Задължителни осигурителни вноски от работодатели","05-00"]
[3,null,"Вноски за доброволно осигуряване","08-00"]
[3,null,"Издръжка","10-00"]
[{"$f":"IF(MAX(E45:J45)=0,IF(MIN(E45:J45)=0,3,2),2)","v":3},null,"Платени данъци, такси и административни санкции","19-00"]
[3,null,"Лихви",null,{"$f":"SUBTOTAL(9,E47:E48)","v":0},0,0,0,0,0]
[3,null,"Лихви по външни заеми"]
[3,null,"Лихви по вътрешни заеми"]
[3,null,"Здравноосигурителни плащания","39-00"]
[3,null,"Стипендии","40-00"]
[3,null,"Пенсии","41-00"]
[3,null,"Текущи трансфери, обезщетения и помощи за домакинствата","42-00"]
[3,null,"Субсидии и други текущи трансфери за нефинансови предприятия","43-00"]
[3,null,"Субсидии и други текущи трансфери за осъществяване на болнична помощ ","43-02"]
[{"$f":"IF(MAX(E55:J55)=0,IF(MIN(E55:J55)=0,3,2),2)","v":3},null,"Субсидии и други текущи трансфери за финансови институции","44-00"]
[3,null,"Субсидии и други текущи трансфери за юридически лица с нестопанска цел","45-00"]
[2,null,"Разходи за членски внос и участие в нетърговски организации и дейности","46-00",null,null,49718,49718]
[3,null,"Предоставени текущи и капиталови трансфери за чужбина","49-00",{"$f":"SUBTOTAL(9,E59:E60)","v":0},0,0,0,0,0]
[{"$f":"IF(MAX(E59:J59)=0,IF(MIN(E59:J59)=0,3,2),2)","v":3},null,"Текущи трансфери за чужбина","49-01"]
[3,null,"Капиталови трансфери за чужбина","49-02"]
[3,null,"Капиталови разходи",null,{"$f":"SUBTOTAL(9,E62:E66)","v":0},0,0,0,0,0]
[3,null,"Основен ремонт на дълготрайни материални активи","51-00"]
[3,null,"Придобиване на дълготрайни материални активи","52-00"]
[3,null,"Придобиване на нематериални дълготрайни активи","53-00"]
[3,null,"Придобиване на земя","54-00"]
[3,null,"Капиталови трансфери","55-00"]
[3,null,"Прираст на държавния резерв и изкупуване на земеделска продукция",null,{"$f":"SUBTOTAL(9,E68:E70)","v":0},0,0,0,0,0]
[3,null,"Плащания за попълване на държавния резерв","57-01"]
[3,null,"Постъпления от продажба на държавния резерв (-)","40-71"]
[3,null,"Плащания за изкупуване на земеделска продукция","57-02"]
[3,"3.","Резерв за непредвидени и неотложни разходи","00-98"]
[1]
[1,null,"НАТУРАЛНИ ПОКАЗАТЕЛИ"]
[{"$f":"IF(MAX(E74:J74)=0,IF(MIN(E74:J74)=0,3,2),2)","v":2},null,"Щатни бройки - общо",null,{"$f":"E76+E82","v":0},0,216,218,0,0]
[2,null,"Средногодишни щатни бройки - общо",null,{"$f":"E79+E83","v":0},0,214,217,0,0]
[2,null,"Щатни бройки",null,{"$f":"SUM(E77:E78)","v":0},0,216,218,0,0]
[2,null,"по трудови правоотношения",null,null,null,20,19]
[2,null,"по служебни правоотношения",null,null,null,196,199]
[2,null,"Средногодишни щатни бройки",null,{"$f":"SUM(E80:E81)","v":0},0,214,217,0,0]
[2,null,"по  трудови правоотношения",null,null,null,19,19]
[2,null,"по  служебни правоотношения",null,null,null,195,198]
[3,null,"Щатни бройки на делегирани бюджети"]
[3,null,"Средногодишни щатни бройки на делегирани бюджети"]
[1]

{"sheet":"E","index":3,"n_rows":0,"n_cols":0,"rows_kept":0,"cut":false,"hidden":true,"merged":[]}

{"sheet":"Progr","index":4,"n_rows":47,"n_cols":11,"rows_kept":47,"cut":false,"hidden":false,"merged":[]}
[1]
[1,null,null,"Обобщена справка за разходите по бюджетни програми"]
[1]
[1,null,null,{"$f":"P_Total!C4","v":"на Комисия за регулиране на съобщенията"}]
[1]
[1]
[1]
[1,null,"Код","Наименование на бюджетните програми",{"$f":"IF(ISBLANK(P_Total!D8),\" \",P_Total!D8)","v":" "},{"$f":"IF(ISBLANK(P_Total!E8),\" \",P_Total!E8)","v":"Закон"},{"$f":"IF(ISBLANK(P_Total!F8),\" \",P_Total!F8)","v":"Уточнен"},{"$f":"IF(ISBLANK(P_Total!G8),\" \",P_Total!G8)","v":"Отчет"},{"$f":"IF(ISBLANK(P_Total!H8),\" \",P_Total!H8)","v":"Отчет"},{"$f":"IF(ISBLANK(P_Total!I8),\" \",P_Total!I8)","v":"Отчет"},{"$f":"IF(ISBLANK(P_Total!J8),\" \",P_Total!J8)","v":"Отчет"}]
[1,null,null,{"$f":"IF(ISBLANK(P_Total!C9),\" \",P_Total!C9)","v":" "},{"$f":"IF(ISBLANK(P_Total!D9),\" \",P_Total!D9)","v":" "},{"$f":"IF(ISBLANK(P_Total!E9),\" \",P_Total!E9)","v":" "},{"$f":"IF(ISBLANK(P_Total!F9),\" \",P_Total!F9)","v":"план"},{"$f":"IF(ISBLANK(P_Total!G9),\" \",P_Total!G9)","v":"към 31 март"},{"$f":"IF(ISBLANK(P_Total!H9),\" \",P_Total!H9)","v":"към 30 юни"},{"$f":"IF(ISBLANK(P_Total!I9),\" \",P_Total!I9)","v":"към 30 септември"},{"$f":"IF(ISBLANK(P_Total!J9),\" \",P_Total!J9)","v":"към 31 декември"}]
[1,null,null,{"$f":"IF(ISBLANK(P_Total!C10),\" \",P_Total!C10)","v":"(в евро)"},{"$f":"IF(ISBLANK(P_Total!D10),\" \",P_Total!D10)","v":" "},{"$f":"IF(ISBLANK(P_Total!E10),\" \",P_Total!E10)","v":"2026 г."},{"$f":"IF(ISBLANK(P_Total!F10),\" \",P_Total!F10)","v":"2026 г."},{"$f":"IF(ISBLANK(P_Total!G10),\" \",P_Total!G10)","v":"2026 г."},{"$f":"IF(ISBLANK(P_Total!H10),\" \",P_Total!H10)","v":"2026 г."},{"$f":"IF(ISBLANK(P_Total!I10),\" \",P_Total!I10)","v":"2026 г."},{"$f":"IF(ISBLANK(P_Total!J10),\" \",P_Total!J10)","v":"2026 г."}]
[1,null,null,{"$f":"IF(ISBLANK(P_Total!C11),\" \",P_Total!C11)","v":" "},{"$f":"IF(ISBLANK(P_Total!D11),\" \",P_Total!D11)","v":" "},{"$f":"IF(ISBLANK(P_Total!E11),\" \",P_Total!E11)","v":" "},{"$f":"IF(ISBLANK(P_Total!F11),\" \",P_Total!F11)","v":" "},{"$f":"IF(ISBLANK(P_Total!G11),\" \",P_Total!G11)","v":" "},{"$f":"IF(ISBLANK(P_Total!H11),\" \",P_Total!H11)","v":" "},{"$f":"IF(ISBLANK(P_Total!I11),\" \",P_Total!I11)","v":" "},{"$f":"IF(ISBLANK(P_Total!J11),\" \",P_Total!J11)","v":" "}]
[1,null,null,{"$f":"IF(ISBLANK(P_Total!C12),\" \",P_Total!C12)","v":" A"},{"$f":"IF(ISBLANK(P_Total!D12),\" \",P_Total!D12)","v":" "},{"$f":"IF(ISBLANK(P_Total!E12),\" \",P_Total!E12)","v":1},{"$f":"IF(ISBLANK(P_Total!F12),\" \",P_Total!F12)","v":2},{"$f":"IF(ISBLANK(P_Total!G12),\" \",P_Total!G12)","v":3},{"$f":"IF(ISBLANK(P_Total!H12),\" \",P_Total!H12)","v":4},{"$f":"IF(ISBLANK(P_Total!I12),\" \",P_Total!I12)","v":5},{"$f":"IF(ISBLANK(P_Total!J12),\" \",P_Total!J12)","v":6}]
[1]
[1,null,null,"ОБЩО РАЗХОДИ",null,{"$f":"P_Total!E$14","v":0},{"$f":"P_Total!F$14","v":0},{"$f":"P_Total!G$14","v":2009248},{"$f":"P_Total!H$14","v":5793612},{"$f":"P_Total!I$14","v":0},{"$f":"P_Total!J$14","v":0}]
[1,null,null,null,null,{"$f":"F14-F16","v":0},0,0,0,0,0]
[1,null,null,"Разходи по бюджетни програми",null,{"$f":"SUBTOTAL(9,F17:F47)","v":0},0,2009248,5793612,0,0]
[{"$f":"IF(AND(MAX(F17:K17)=0,MIN(F17:K17)=0,C17=\" \"),3,2)","v":2},"P (1)",{"$f":"IF($E17=0,\" \",'P (1)'!B$4)","v":"Код 4300.01.01"},{"$f":"IF($E17=0,\" \",'P (1)'!C$4)","v":"Бюджетна програма \"Регулиране не електронните съобщения и пощенските услуги\""},{"$f":"VLOOKUP($B17,Inf!$B$11:$C$40,2,FALSE)","v":1},{"$f":"IF($E17=0,0,'P (1)'!E$14)","v":0},{"$f":"IF($E17=0,0,'P (1)'!F$14)","v":0},{"$f":"IF($E17=0,0,'P (1)'!G$14)","v":2009248},{"$f":"IF($E17=0,0,'P (1)'!H$14)","v":5793612},{"$f":"IF($E17=0,0,'P (1)'!I$14)","v":0},{"$f":"IF($E17=0,0,'P (1)'!J$14)","v":0}]
[{"$f":"IF(AND(MAX(F18:K18)=0,MIN(F18:K18)=0,C18=\" \"),3,2)","v":3},"P (2)",{"$f":"IF($E18=0,\" \",P!B$4)","v":" "},{"$f":"IF($E18=0,\" \",P!C$4)","v":" "},{"$f":"VLOOKUP($B18,Inf!$B$11:$C$40,2,FALSE)","v":0},{"$f":"IF($E18=0,0,P!E$14)","v":0},{"$f":"IF($E18=0,0,P!F$14)","v":0},{"$f":"IF($E18=0,0,P!G$14)","v":0},{"$f":"IF($E18=0,0,P!H$14)","v":0},{"$f":"IF($E18=0,0,P!I$14)","v":0},{"$f":"IF($E18=0,0,P!J$14)","v":0}]
[3,"P (3)",{"$f":"IF($E19=0,\" \",P!B$4)","v":" "},{"$f":"IF($E19=0,\" \",P!C$4)","v":" "},{"$f":"VLOOKUP($B19,Inf!$B$11:$C$40,2,FALSE)","v":0},{"$f":"IF($E19=0,0,P!E$14)","v":0},{"$f":"IF($E19=0,0,P!F$14)","v":0},{"$f":"IF($E19=0,0,P!G$14)","v":0},{"$f":"IF($E19=0,0,P!H$14)","v":0},{"$f":"IF($E19=0,0,P!I$14)","v":0},{"$f":"IF($E19=0,0,P!J$14)","v":0}]
[3,"P (4)",{"$f":"IF($E20=0,\" \",P!B$4)","v":" "},{"$f":"IF($E20=0,\" \",P!C$4)","v":" "},{"$f":"VLOOKUP($B20,Inf!$B$11:$C$40,2,FALSE)","v":0},{"$f":"IF($E20=0,0,P!E$14)","v":0},{"$f":"IF($E20=0,0,P!F$14)","v":0},{"$f":"IF($E20=0,0,P!G$14)","v":0},{"$f":"IF($E20=0,0,P!H$14)","v":0},{"$f":"IF($E20=0,0,P!I$14)","v":0},{"$f":"IF($E20=0,0,P!J$14)","v":0}]
[3,"P (5)",{"$f":"IF($E21=0,\" \",P!B$4)","v":" "},{"$f":"IF($E21=0,\" \",P!C$4)","v":" "},{"$f":"VLOOKUP($B21,Inf!$B$11:$C$40,2,FALSE)","v":0},{"$f":"IF($E21=0,0,P!E$14)","v":0},{"$f":"IF($E21=0,0,P!F$14)","v":0},{"$f":"IF($E21=0,0,P!G$14)","v":0},{"$f":"IF($E21=0,0,P!H$14)","v":0},{"$f":"IF($E21=0,0,P!I$14)","v":0},{"$f":"IF($E21=0,0,P!J$14)","v":0}]
[3,"P (6)",{"$f":"IF($E22=0,\" \",P!B$4)","v":" "},{"$f":"IF($E22=0,\" \",P!C$4)","v":" "},{"$f":"VLOOKUP($B22,Inf!$B$11:$C$40,2,FALSE)","v":0},{"$f":"IF($E22=0,0,P!E$14)","v":0},{"$f":"IF($E22=0,0,P!F$14)","v":0},{"$f":"IF($E22=0,0,P!G$14)","v":0},{"$f":"IF($E22=0,0,P!H$14)","v":0},{"$f":"IF($E22=0,0,P!I$14)","v":0},{"$f":"IF($E22=0,0,P!J$14)","v":0}]
[3,"P (7)",{"$f":"IF($E23=0,\" \",P!B$4)","v":" "},{"$f":"IF($E23=0,\" \",P!C$4)","v":" "},{"$f":"VLOOKUP($B23,Inf!$B$11:$C$40,2,FALSE)","v":0},{"$f":"IF($E23=0,0,P!E$14)","v":0},{"$f":"IF($E23=0,0,P!F$14)","v":0},{"$f":"IF($E23=0,0,P!G$14)","v":0},{"$f":"IF($E23=0,0,P!H$14)","v":0},{"$f":"IF($E23=0,0,P!I$14)","v":0},{"$f":"IF($E23=0,0,P!J$14)","v":0}]
[3,"P (8)",{"$f":"IF($E24=0,\" \",P!B$4)","v":" "},{"$f":"IF($E24=0,\" \",P!C$4)","v":" "},{"$f":"VLOOKUP($B24,Inf!$B$11:$C$40,2,FALSE)","v":0},{"$f":"IF($E24=0,0,P!E$14)","v":0},{"$f":"IF($E24=0,0,P!F$14)","v":0},{"$f":"IF($E24=0,0,P!G$14)","v":0},{"$f":"IF($E24=0,0,P!H$14)","v":0},{"$f":"IF($E24=0,0,P!I$14)","v":0},{"$f":"IF($E24=0,0,P!J$14)","v":0}]
[3,"P (9)",{"$f":"IF($E25=0,\" \",P!B$4)","v":" "},{"$f":"IF($E25=0,\" \",P!C$4)","v":" "},{"$f":"VLOOKUP($B25,Inf!$B$11:$C$40,2,FALSE)","v":0},{"$f":"IF($E25=0,0,P!E$14)","v":0},{"$f":"IF($E25=0,0,P!F$14)","v":0},{"$f":"IF($E25=0,0,P!G$14)","v":0},{"$f":"IF($E25=0,0,P!H$14)","v":0},{"$f":"IF($E25=0,0,P!I$14)","v":0},{"$f":"IF($E25=0,0,P!J$14)","v":0}]
[3,"P (10)",{"$f":"IF($E26=0,\" \",P!B$4)","v":" "},{"$f":"IF($E26=0,\" \",P!C$4)","v":" "},{"$f":"VLOOKUP($B26,Inf!$B$11:$C$40,2,FALSE)","v":0},{"$f":"IF($E26=0,0,P!E$14)","v":0},{"$f":"IF($E26=0,0,P!F$14)","v":0},{"$f":"IF($E26=0,0,P!G$14)","v":0},{"$f":"IF($E26=0,0,P!H$14)","v":0},{"$f":"IF($E26=0,0,P!I$14)","v":0},{"$f":"IF($E26=0,0,P!J$14)","v":0}]
[3,"P (11)",{"$f":"IF($E27=0,\" \",P!B$4)","v":" "},{"$f":"IF($E27=0,\" \",P!C$4)","v":" "},{"$f":"VLOOKUP($B27,Inf!$B$11:$C$40,2,FALSE)","v":0},{"$f":"IF($E27=0,0,P!E$14)","v":0},{"$f":"IF($E27=0,0,P!F$14)","v":0},{"$f":"IF($E27=0,0,P!G$14)","v":0},{"$f":"IF($E27=0,0,P!H$14)","v":0},{"$f":"IF($E27=0,0,P!I$14)","v":0},{"$f":"IF($E27=0,0,P!J$14)","v":0}]
[3,"P (12)",{"$f":"IF($E28=0,\" \",P!B$4)","v":" "},{"$f":"IF($E28=0,\" \",P!C$4)","v":" "},{"$f":"VLOOKUP($B28,Inf!$B$11:$C$40,2,FALSE)","v":0},{"$f":"IF($E28=0,0,P!E$14)","v":0},{"$f":"IF($E28=0,0,P!F$14)","v":0},{"$f":"IF($E28=0,0,P!G$14)","v":0},{"$f":"IF($E28=0,0,P!H$14)","v":0},{"$f":"IF($E28=0,0,P!I$14)","v":0},{"$f":"IF($E28=0,0,P!J$14)","v":0}]
[3,"P (13)",{"$f":"IF($E29=0,\" \",P!B$4)","v":" "},{"$f":"IF($E29=0,\" \",P!C$4)","v":" "},{"$f":"VLOOKUP($B29,Inf!$B$11:$C$40,2,FALSE)","v":0},{"$f":"IF($E29=0,0,P!E$14)","v":0},{"$f":"IF($E29=0,0,P!F$14)","v":0},{"$f":"IF($E29=0,0,P!G$14)","v":0},{"$f":"IF($E29=0,0,P!H$14)","v":0},{"$f":"IF($E29=0,0,P!I$14)","v":0},{"$f":"IF($E29=0,0,P!J$14)","v":0}]
[3,"P (14)",{"$f":"IF($E30=0,\" \",P!B$4)","v":" "},{"$f":"IF($E30=0,\" \",P!C$4)","v":" "},{"$f":"VLOOKUP($B30,Inf!$B$11:$C$40,2,FALSE)","v":0},{"$f":"IF($E30=0,0,P!E$14)","v":0},{"$f":"IF($E30=0,0,P!F$14)","v":0},{"$f":"IF($E30=0,0,P!G$14)","v":0},{"$f":"IF($E30=0,0,P!H$14)","v":0},{"$f":"IF($E30=0,0,P!I$14)","v":0},{"$f":"IF($E30=0,0,P!J$14)","v":0}]
[3,"P (15)",{"$f":"IF($E31=0,\" \",P!B$4)","v":" "},{"$f":"IF($E31=0,\" \",P!C$4)","v":" "},{"$f":"VLOOKUP($B31,Inf!$B$11:$C$40,2,FALSE)","v":0},{"$f":"IF($E31=0,0,P!E$14)","v":0},{"$f":"IF($E31=0,0,P!F$14)","v":0},{"$f":"IF($E31=0,0,P!G$14)","v":0},{"$f":"IF($E31=0,0,P!H$14)","v":0},{"$f":"IF($E31=0,0,P!I$14)","v":0},{"$f":"IF($E31=0,0,P!J$14)","v":0}]
[3,"P (16)",{"$f":"IF($E32=0,\" \",P!B$4)","v":" "},{"$f":"IF($E32=0,\" \",P!C$4)","v":" "},{"$f":"VLOOKUP($B32,Inf!$B$11:$C$40,2,FALSE)","v":0},{"$f":"IF($E32=0,0,P!E$14)","v":0},{"$f":"IF($E32=0,0,P!F$14)","v":0},{"$f":"IF($E32=0,0,P!G$14)","v":0},{"$f":"IF($E32=0,0,P!H$14)","v":0},{"$f":"IF($E32=0,0,P!I$14)","v":0},{"$f":"IF($E32=0,0,P!J$14)","v":0}]
[3,"P (17)",{"$f":"IF($E33=0,\" \",P!B$4)","v":" "},{"$f":"IF($E33=0,\" \",P!C$4)","v":" "},{"$f":"VLOOKUP($B33,Inf!$B$11:$C$40,2,FALSE)","v":0},{"$f":"IF($E33=0,0,P!E$14)","v":0},{"$f":"IF($E33=0,0,P!F$14)","v":0},{"$f":"IF($E33=0,0,P!G$14)","v":0},{"$f":"IF($E33=0,0,P!H$14)","v":0},{"$f":"IF($E33=0,0,P!I$14)","v":0},{"$f":"IF($E33=0,0,P!J$14)","v":0}]
[3,"P (18)",{"$f":"IF($E34=0,\" \",P!B$4)","v":" "},{"$f":"IF($E34=0,\" \",P!C$4)","v":" "},{"$f":"VLOOKUP($B34,Inf!$B$11:$C$40,2,FALSE)","v":0},{"$f":"IF($E34=0,0,P!E$14)","v":0},{"$f":"IF($E34=0,0,P!F$14)","v":0},{"$f":"IF($E34=0,0,P!G$14)","v":0},{"$f":"IF($E34=0,0,P!H$14)","v":0},{"$f":"IF($E34=0,0,P!I$14)","v":0},{"$f":"IF($E34=0,0,P!J$14)","v":0}]
[3,"P (19)",{"$f":"IF($E35=0,\" \",P!B$4)","v":" "},{"$f":"IF($E35=0,\" \",P!C$4)","v":" "},{"$f":"VLOOKUP($B35,Inf!$B$11:$C$40,2,FALSE)","v":0},{"$f":"IF($E35=0,0,P!E$14)","v":0},{"$f":"IF($E35=0,0,P!F$14)","v":0},{"$f":"IF($E35=0,0,P!G$14)","v":0},{"$f":"IF($E35=0,0,P!H$14)","v":0},{"$f":"IF($E35=0,0,P!I$14)","v":0},{"$f":"IF($E35=0,0,P!J$14)","v":0}]
[3,"P (20)",{"$f":"IF($E36=0,\" \",P!B$4)","v":" "},{"$f":"IF($E36=0,\" \",P!C$4)","v":" "},{"$f":"VLOOKUP($B36,Inf!$B$11:$C$40,2,FALSE)","v":0},{"$f":"IF($E36=0,0,P!E$14)","v":0},{"$f":"IF($E36=0,0,P!F$14)","v":0},{"$f":"IF($E36=0,0,P!G$14)","v":0},{"$f":"IF($E36=0,0,P!H$14)","v":0},{"$f":"IF($E36=0,0,P!I$14)","v":0},{"$f":"IF($E36=0,0,P!J$14)","v":0}]
[3,"P (21)",{"$f":"IF($E37=0,\" \",P!B$4)","v":" "},{"$f":"IF($E37=0,\" \",P!C$4)","v":" "},{"$f":"VLOOKUP($B37,Inf!$B$11:$C$40,2,FALSE)","v":0},{"$f":"IF($E37=0,0,P!E$14)","v":0},{"$f":"IF($E37=0,0,P!F$14)","v":0},{"$f":"IF($E37=0,0,P!G$14)","v":0},{"$f":"IF($E37=0,0,P!H$14)","v":0},{"$f":"IF($E37=0,0,P!I$14)","v":0},{"$f":"IF($E37=0,0,P!J$14)","v":0}]
[3,"P (22)",{"$f":"IF($E38=0,\" \",P!B$4)","v":" "},{"$f":"IF($E38=0,\" \",P!C$4)","v":" "},{"$f":"VLOOKUP($B38,Inf!$B$11:$C$40,2,FALSE)","v":0},{"$f":"IF($E38=0,0,P!E$14)","v":0},{"$f":"IF($E38=0,0,P!F$14)","v":0},{"$f":"IF($E38=0,0,P!G$14)","v":0},{"$f":"IF($E38=0,0,P!H$14)","v":0},{"$f":"IF($E38=0,0,P!I$14)","v":0},{"$f":"IF($E38=0,0,P!J$14)","v":0}]
[3,"P (23)",{"$f":"IF($E39=0,\" \",P!B$4)","v":" "},{"$f":"IF($E39=0,\" \",P!C$4)","v":" "},{"$f":"VLOOKUP($B39,Inf!$B$11:$C$40,2,FALSE)","v":0},{"$f":"IF($E39=0,0,P!E$14)","v":0},{"$f":"IF($E39=0,0,P!F$14)","v":0},{"$f":"IF($E39=0,0,P!G$14)","v":0},{"$f":"IF($E39=0,0,P!H$14)","v":0},{"$f":"IF($E39=0,0,P!I$14)","v":0},{"$f":"IF($E39=0,0,P!J$14)","v":0}]
[3,"P (24)",{"$f":"IF($E40=0,\" \",P!B$4)","v":" "},{"$f":"IF($E40=0,\" \",P!C$4)","v":" "},{"$f":"VLOOKUP($B40,Inf!$B$11:$C$40,2,FALSE)","v":0},{"$f":"IF($E40=0,0,P!E$14)","v":0},{"$f":"IF($E40=0,0,P!F$14)","v":0},{"$f":"IF($E40=0,0,P!G$14)","v":0},{"$f":"IF($E40=0,0,P!H$14)","v":0},{"$f":"IF($E40=0,0,P!I$14)","v":0},{"$f":"IF($E40=0,0,P!J$14)","v":0}]
[3,"P (25)",{"$f":"IF($E41=0,\" \",P!B$4)","v":" "},{"$f":"IF($E41=0,\" \",P!C$4)","v":" "},{"$f":"VLOOKUP($B41,Inf!$B$11:$C$40,2,FALSE)","v":0},{"$f":"IF($E41=0,0,P!E$14)","v":0},{"$f":"IF($E41=0,0,P!F$14)","v":0},{"$f":"IF($E41=0,0,P!G$14)","v":0},{"$f":"IF($E41=0,0,P!H$14)","v":0},{"$f":"IF($E41=0,0,P!I$14)","v":0},{"$f":"IF($E41=0,0,P!J$14)","v":0}]
[3,"P (26)",{"$f":"IF($E42=0,\" \",P!B$4)","v":" "},{"$f":"IF($E42=0,\" \",P!C$4)","v":" "},{"$f":"VLOOKUP($B42,Inf!$B$11:$C$40,2,FALSE)","v":0},{"$f":"IF($E42=0,0,P!E$14)","v":0},{"$f":"IF($E42=0,0,P!F$14)","v":0},{"$f":"IF($E42=0,0,P!G$14)","v":0},{"$f":"IF($E42=0,0,P!H$14)","v":0},{"$f":"IF($E42=0,0,P!I$14)","v":0},{"$f":"IF($E42=0,0,P!J$14)","v":0}]
[3,"P (27)",{"$f":"IF($E43=0,\" \",P!B$4)","v":" "},{"$f":"IF($E43=0,\" \",P!C$4)","v":" "},{"$f":"VLOOKUP($B43,Inf!$B$11:$C$40,2,FALSE)","v":0},{"$f":"IF($E43=0,0,P!E$14)","v":0},{"$f":"IF($E43=0,0,P!F$14)","v":0},{"$f":"IF($E43=0,0,P!G$14)","v":0},{"$f":"IF($E43=0,0,P!H$14)","v":0},{"$f":"IF($E43=0,0,P!I$14)","v":0},{"$f":"IF($E43=0,0,P!J$14)","v":0}]
[3,"P (28)",{"$f":"IF($E44=0,\" \",P!B$4)","v":" "},{"$f":"IF($E44=0,\" \",P!C$4)","v":" "},{"$f":"VLOOKUP($B44,Inf!$B$11:$C$40,2,FALSE)","v":0},{"$f":"IF($E44=0,0,P!E$14)","v":0},{"$f":"IF($E44=0,0,P!F$14)","v":0},{"$f":"IF($E44=0,0,P!G$14)","v":0},{"$f":"IF($E44=0,0,P!H$14)","v":0},{"$f":"IF($E44=0,0,P!I$14)","v":0},{"$f":"IF($E44=0,0,P!J$14)","v":0}]
[3,"P (29)",{"$f":"IF($E45=0,\" \",P!B$4)","v":" "},{"$f":"IF($E45=0,\" \",P!C$4)","v":" "},{"$f":"VLOOKUP($B45,Inf!$B$11:$C$40,2,FALSE)","v":0},{"$f":"IF($E45=0,0,P!E$14)","v":0},{"$f":"IF($E45=0,0,P!F$14)","v":0},{"$f":"IF($E45=0,0,P!G$14)","v":0},{"$f":"IF($E45=0,0,P!H$14)","v":0},{"$f":"IF($E45=0,0,P!I$14)","v":0},{"$f":"IF($E45=0,0,P!J$14)","v":0}]
[3,"P (30)",{"$f":"IF($E46=0,\" \",P!B$4)","v":" "},{"$f":"IF($E46=0,\" \",P!C$4)","v":" "},{"$f":"VLOOKUP($B46,Inf!$B$11:$C$40,2,FALSE)","v":0},{"$f":"IF($E46=0,0,P!E$14)","v":0},{"$f":"IF($E46=0,0,P!F$14)","v":0},{"$f":"IF($E46=0,0,P!G$14)","v":0},{"$f":"IF($E46=0,0,P!H$14)","v":0},{"$f":"IF($E46=0,0,P!I$14)","v":0},{"$f":"IF($E46=0,0,P!J$14)","v":0}]
[1]

{"sheet":"PomoshtenSheet","index":5,"n_rows":63,"n_cols":10,"rows_kept":63,"cut":false,"hidden":false,"merged":[]}
[1]
[1,null,"Помощен Sheet - Сумата на разходите от всички програми (от Sheet P_Total) по параграфи - за сравнение с отчета по ЕБК (за проверка)."]
[1]
[1,null,"Сумата на разходите от всички програми по определен показател трябва да съответства на размера на същият показател от отчета по ЕБК."]
[1]
[1]
[1]
[1,null,"П О К А З А Т Е Л И",null,{"$f":"IF(ISBLANK(P_Total!E8),\" \",P_Total!E8)","v":"Закон"},{"$f":"IF(ISBLANK(P_Total!F8),\" \",P_Total!F8)","v":"Уточнен"},{"$f":"IF(ISBLANK(P_Total!G8),\" \",P_Total!G8)","v":"Отчет"},{"$f":"IF(ISBLANK(P_Total!H8),\" \",P_Total!H8)","v":"Отчет"},{"$f":"IF(ISBLANK(P_Total!I8),\" \",P_Total!I8)","v":"Отчет"},{"$f":"IF(ISBLANK(P_Total!J8),\" \",P_Total!J8)","v":"Отчет"}]
[1,null,null,null,{"$f":"IF(ISBLANK(P_Total!E9),\" \",P_Total!E9)","v":" "},{"$f":"IF(ISBLANK(P_Total!F9),\" \",P_Total!F9)","v":"план"},{"$f":"IF(ISBLANK(P_Total!G9),\" \",P_Total!G9)","v":"към 31 март"},{"$f":"IF(ISBLANK(P_Total!H9),\" \",P_Total!H9)","v":"към 30 юни"},{"$f":"IF(ISBLANK(P_Total!I9),\" \",P_Total!I9)","v":"към 30 септември"},{"$f":"IF(ISBLANK(P_Total!J9),\" \",P_Total!J9)","v":"към 31 декември"}]
[1,null,{"$f":"P_Total!C10","v":"(в евро)"},null,{"$f":"IF(ISBLANK(P_Total!E10),\" \",P_Total!E10)","v":"2026 г."},{"$f":"IF(ISBLANK(P_Total!F10),\" \",P_Total!F10)","v":"2026 г."},{"$f":"IF(ISBLANK(P_Total!G10),\" \",P_Total!G10)","v":"2026 г."},{"$f":"IF(ISBLANK(P_Total!H10),\" \",P_Total!H10)","v":"2026 г."},{"$f":"IF(ISBLANK(P_Total!I10),\" \",P_Total!I10)","v":"2026 г."},{"$f":"IF(ISBLANK(P_Total!J10),\" \",P_Total!J10)","v":"2026 г."}]
[1,null,null,null,{"$f":"IF(ISBLANK(P_Total!E11),\" \",P_Total!E11)","v":" "},{"$f":"IF(ISBLANK(P_Total!F11),\" \",P_Total!F11)","v":" "},{"$f":"IF(ISBLANK(P_Total!G11),\" \",P_Total!G11)","v":" "},{"$f":"IF(ISBLANK(P_Total!H11),\" \",P_Total!H11)","v":" "},{"$f":"IF(ISBLANK(P_Total!I11),\" \",P_Total!I11)","v":" "},{"$f":"IF(ISBLANK(P_Total!J11),\" \",P_Total!J11)","v":" "}]
[1,null," A",null,{"$f":"IF(ISBLANK(P_Total!E12),\" \",P_Total!E12)","v":1},{"$f":"IF(ISBLANK(P_Total!F12),\" \",P_Total!F12)","v":2},{"$f":"IF(ISBLANK(P_Total!G12),\" \",P_Total!G12)","v":3},{"$f":"IF(ISBLANK(P_Total!H12),\" \",P_Total!H12)","v":4},{"$f":"IF(ISBLANK(P_Total!I12),\" \",P_Total!I12)","v":5},{"$f":"IF(ISBLANK(P_Total!J12),\" \",P_Total!J12)","v":6}]
[1,null,null,null,{"$f":"P_Total!E14-PomoshtenSheet!E14","v":0},{"$f":"P_Total!F14-PomoshtenSheet!F14","v":0},{"$f":"P_Total!G14-PomoshtenSheet!G14","v":0},{"$f":"P_Total!H14-PomoshtenSheet!H14","v":0},{"$f":"P_Total!I14-PomoshtenSheet!I14","v":0},{"$f":"P_Total!J14-PomoshtenSheet!J14","v":0}]
[1,null,"II. РАЗХОДИ - ВСИЧКО","02",{"$f":"E16","v":0},0,2009248,5793612,0,0]
[1]
[{"$f":"IF(MAX(E16:J16)=0,IF(MIN(E16:J16)=0,3,2),2)","v":2},null,"Общо разходи",null,{"$f":"SUBTOTAL(9,E17:E50)","v":0},0,2009248,5793612,0,0]
[2," 1.","Текущи разходи",null,{"$f":"SUBTOTAL(9,E18:E36)","v":0},0,2004546,4242071,0,0]
[2,null,"Персонал",null,{"$f":"SUBTOTAL(9,E19:E22)","v":0},0,1645601,3476314,0,0]
[2,null,"Заплати и възнаграждения за персонала, нает по трудови и служебни правоотношения","01-00",{"$f":"P_Total!E19+P_Total!E40","v":0},{"$f":"P_Total!F19+P_Total!F40","v":0},{"$f":"P_Total!G19+P_Total!G40","v":1234341},{"$f":"P_Total!H19+P_Total!H40","v":2652148},{"$f":"P_Total!I19+P_Total!I40","v":0},{"$f":"P_Total!J19+P_Total!J40","v":0}]
[2,null,"Други възнаграждения и плащания за персонала","02-00",{"$f":"P_Total!E20+P_Total!E41","v":0},{"$f":"P_Total!F20+P_Total!F41","v":0},{"$f":"P_Total!G20+P_Total!G41","v":56299},{"$f":"P_Total!H20+P_Total!H41","v":86622},{"$f":"P_Total!I20+P_Total!I41","v":0},{"$f":"P_Total!J20+P_Total!J41","v":0}]
[2,null,"Задължителни осигурителни вноски от работодатели","05-00",{"$f":"P_Total!E21+P_Total!E42","v":0},{"$f":"P_Total!F21+P_Total!F42","v":0},{"$f":"P_Total!G21+P_Total!G42","v":354961},{"$f":"P_Total!H21+P_Total!H42","v":737544},{"$f":"P_Total!I21+P_Total!I42","v":0},{"$f":"P_Total!J21+P_Total!J42","v":0}]
[3,null,"Вноски за доброволно осигуряване","08-00",{"$f":"P_Total!E22+P_Total!E43","v":0},{"$f":"P_Total!F22+P_Total!F43","v":0},{"$f":"P_Total!G22+P_Total!G43","v":0},{"$f":"P_Total!H22+P_Total!H43","v":0},{"$f":"P_Total!I22+P_Total!I43","v":0},{"$f":"P_Total!J22+P_Total!J43","v":0}]
[2,null,"Издръжка","10-00",{"$f":"P_Total!E24+P_Total!E44","v":0},{"$f":"P_Total!F24+P_Total!F44","v":0},{"$f":"P_Total!G24+P_Total!G44","v":307711},{"$f":"P_Total!H24+P_Total!H44","v":684375},{"$f":"P_Total!I24+P_Total!I44","v":0},{"$f":"P_Total!J24+P_Total!J44","v":0}]
[2,null,"Платени данъци, такси и административни санкции","19-00",{"$f":"P_Total!E25+P_Total!E45","v":0},{"$f":"P_Total!F25+P_Total!F45","v":0},{"$f":"P_Total!G25+P_Total!G45","v":1516},{"$f":"P_Total!H25+P_Total!H45","v":31664},{"$f":"P_Total!I25+P_Total!I45","v":0},{"$f":"P_Total!J25+P_Total!J45","v":0}]
[3,null,"Лихви",null,{"$f":"SUBTOTAL(9,E26:E27)","v":0},0,0,0,0,0]
[3,null,"Лихви по външни заеми",null,{"$f":"P_Total!E27+P_Total!E47","v":0},{"$f":"P_Total!F27+P_Total!F47","v":0},{"$f":"P_Total!G27+P_Total!G47","v":0},{"$f":"P_Total!H27+P_Total!H47","v":0},{"$f":"P_Total!I27+P_Total!I47","v":0},{"$f":"P_Total!J27+P_Total!J47","v":0}]
[3,null,"Лихви по вътрешни заеми",null,{"$f":"P_Total!E28+P_Total!E48","v":0},{"$f":"P_Total!F28+P_Total!F48","v":0},{"$f":"P_Total!G28+P_Total!G48","v":0},{"$f":"P_Total!H28+P_Total!H48","v":0},{"$f":"P_Total!I28+P_Total!I48","v":0},{"$f":"P_Total!J28+P_Total!J48","v":0}]
[3,null,"Здравноосигурителни плащания","39-00",{"$f":"P_Total!E49","v":0},{"$f":"P_Total!F49","v":0},{"$f":"P_Total!G49","v":0},{"$f":"P_Total!H49","v":0},{"$f":"P_Total!I49","v":0},{"$f":"P_Total!J49","v":0}]
[3,null,"Стипендии","40-00",{"$f":"P_Total!E50","v":0},{"$f":"P_Total!F50","v":0},{"$f":"P_Total!G50","v":0},{"$f":"P_Total!H50","v":0},{"$f":"P_Total!I50","v":0},{"$f":"P_Total!J50","v":0}]
[3,null,"Пенсии","41-00",{"$f":"P_Total!E51","v":0},{"$f":"P_Total!F51","v":0},{"$f":"P_Total!G51","v":0},{"$f":"P_Total!H51","v":0},{"$f":"P_Total!I51","v":0},{"$f":"P_Total!J51","v":0}]
[3,null,"Текущи трансфери, обезщетения и помощи за домакинствата","42-00",{"$f":"P_Total!E52+P_Total!E29","v":0},{"$f":"P_Total!F52+P_Total!F29","v":0},{"$f":"P_Total!G52+P_Total!G29","v":0},{"$f":"P_Total!H52+P_Total!H29","v":0},{"$f":"P_Total!I52+P_Total!I29","v":0},{"$f":"P_Total!J52+P_Total!J29","v":0}]
[3,null,"Субсидии и други текущи трансфери за нефинансови предприятия","43-00",{"$f":"P_Total!E53","v":0},{"$f":"P_Total!F53","v":0},{"$f":"P_Total!G53","v":0},{"$f":"P_Total!H53","v":0},{"$f":"P_Total!I53","v":0},{"$f":"P_Total!J53","v":0}]
[3,null,"Субсидии и други текущи трансфери за осъществяване на болнична помощ ","43-02",{"$f":"P_Total!E54","v":0},{"$f":"P_Total!F54","v":0},{"$f":"P_Total!G54","v":0},{"$f":"P_Total!H54","v":0},{"$f":"P_Total!I54","v":0},{"$f":"P_Total!J54","v":0}]
[{"$f":"IF(MAX(E34:J34)=0,IF(MIN(E34:J34)=0,3,2),2)","v":3},null,"Субсидии и други текущи трансфери за финансови институции","44-00",{"$f":"P_Total!E55","v":0},{"$f":"P_Total!F55","v":0},{"$f":"P_Total!G55","v":0},{"$f":"P_Total!H55","v":0},{"$f":"P_Total!I55","v":0},{"$f":"P_Total!J55","v":0}]
[3,null,"Субсидии и други текущи трансфери за юридически лица с нестопанска цел","45-00",{"$f":"P_Total!E56","v":0},{"$f":"P_Total!F56","v":0},{"$f":"P_Total!G56","v":0},{"$f":"P_Total!H56","v":0},{"$f":"P_Total!I56","v":0},{"$f":"P_Total!J56","v":0}]
[2,null,"Разходи за членски внос и участие в нетърговски организации и дейности","46-00",{"$f":"P_Total!E30+P_Total!E57","v":0},{"$f":"P_Total!F30+P_Total!F57","v":0},{"$f":"P_Total!G30+P_Total!G57","v":49718},{"$f":"P_Total!H30+P_Total!H57","v":49718},{"$f":"P_Total!I30+P_Total!I57","v":0},{"$f":"P_Total!J30+P_Total!J57","v":0}]
[3," 2.","Предоставени текущи и капиталови трансфери за чужбина","49-00",{"$f":"SUBTOTAL(9,E38:E39)","v":0},0,0,0,0,0]
[3,null,"Текущи трансфери за чужбина","49-01",{"$f":"P_Total!E59","v":0},{"$f":"P_Total!F59","v":0},{"$f":"P_Total!G59","v":0},{"$f":"P_Total!H59","v":0},{"$f":"P_Total!I59","v":0},{"$f":"P_Total!J59","v":0}]
[3,null,"Капиталови трансфери за чужбина","49-02",{"$f":"P_Total!E60","v":0},{"$f":"P_Total!F60","v":0},{"$f":"P_Total!G60","v":0},{"$f":"P_Total!H60","v":0},{"$f":"P_Total!I60","v":0},{"$f":"P_Total!J60","v":0}]
[2," 3.","Капиталови разходи",null,{"$f":"SUBTOTAL(9,E41:E45)","v":0},0,4702,1551541,0,0]
[2,null,"Основен ремонт на дълготрайни материални активи","51-00",{"$f":"P_Total!E32+P_Total!E62","v":0},{"$f":"P_Total!F32+P_Total!F62","v":0},{"$f":"P_Total!G32+P_Total!G62","v":4702},{"$f":"P_Total!H32+P_Total!H62","v":4702},{"$f":"P_Total!I32+P_Total!I62","v":0},{"$f":"P_Total!J32+P_Total!J62","v":0}]
[2,null,"Придобиване на дълготрайни материални активи","52-00",{"$f":"P_Total!E33+P_Total!E63","v":0},{"$f":"P_Total!F33+P_Total!F63","v":0},{"$f":"P_Total!G33+P_Total!G63","v":0},{"$f":"P_Total!H33+P_Total!H63","v":1546839},{"$f":"P_Total!I33+P_Total!I63","v":0},{"$f":"P_Total!J33+P_Total!J63","v":0}]
[3,null,"Придобиване на нематериални дълготрайни активи","53-00",{"$f":"P_Total!E34+P_Total!E64","v":0},{"$f":"P_Total!F34+P_Total!F64","v":0},{"$f":"P_Total!G34+P_Total!G64","v":0},{"$f":"P_Total!H34+P_Total!H64","v":0},{"$f":"P_Total!I34+P_Total!I64","v":0},{"$f":"P_Total!J34+P_Total!J64","v":0}]
[3,null,"Придобиване на земя","54-00",{"$f":"P_Total!E35+P_Total!E65","v":0},{"$f":"P_Total!F35+P_Total!F65","v":0},{"$f":"P_Total!G35+P_Total!G65","v":0},{"$f":"P_Total!H35+P_Total!H65","v":0},{"$f":"P_Total!I35+P_Total!I65","v":0},{"$f":"P_Total!J35+P_Total!J65","v":0}]
[3,null,"Капиталови трансфери","55-00",{"$f":"P_Total!E36+P_Total!E66","v":0},{"$f":"P_Total!F36+P_Total!F66","v":0},{"$f":"P_Total!G36+P_Total!G66","v":0},{"$f":"P_Total!H36+P_Total!H66","v":0},{"$f":"P_Total!I36+P_Total!I66","v":0},{"$f":"P_Total!J36+P_Total!J66","v":0}]
[3," 4.","Прираст на държавния резерв и изкупуване на земеделска продукция",null,{"$f":"SUBTOTAL(9,E47:E49)","v":0},0,0,0,0,0]
[3,null,"Плащания за попълване на държавния резерв","57-01",{"$f":"P_Total!E68","v":0},{"$f":"P_Total!F68","v":0},{"$f":"P_Total!G68","v":0},{"$f":"P_Total!H68","v":0},{"$f":"P_Total!I68","v":0},{"$f":"P_Total!J68","v":0}]
[3,null,"Постъпления от продажба на държавния резерв (-)","40-71",{"$f":"P_Total!E69","v":0},{"$f":"P_Total!F69","v":0},{"$f":"P_Total!G69","v":0},{"$f":"P_Total!H69","v":0},{"$f":"P_Total!I69","v":0},{"$f":"P_Total!J69","v":0}]
[3,null,"Плащания за изкупуване на земеделска продукция","57-02",{"$f":"P_Total!E70","v":0},{"$f":"P_Total!F70","v":0},{"$f":"P_Total!G70","v":0},{"$f":"P_Total!H70","v":0},{"$f":"P_Total!I70","v":0},{"$f":"P_Total!J70","v":0}]
[3," 5.","Резерв за непредвидени и неотложни разходи","00-98",{"$f":"P_Total!E71","v":0},{"$f":"P_Total!F71","v":0},{"$f":"P_Total!G71","v":0},{"$f":"P_Total!H71","v":0},{"$f":"P_Total!I71","v":0},{"$f":"P_Total!J71","v":0}]
[1]
[1,null,"НАТУРАЛНИ ПОКАЗАТЕЛИ"]
[{"$f":"IF(MAX(E53:J53)=0,IF(MIN(E53:J53)=0,3,2),2)","v":2},null,"Щатни бройки - общо",null,{"$f":"E55+E61","v":0},0,216,218,0,0]
[2,null,"Средногодишни щатни бройки - общо",null,{"$f":"E58+E62","v":0},0,214,217,0,0]
[2,null,"Щатни бройки",null,{"$f":"SUM(E56:E57)","v":0},0,216,218,0,0]
[2,null,"по трудови правоотношения",null,{"$f":"P_Total!E77","v":0},{"$f":"P_Total!F77","v":0},{"$f":"P_Total!G77","v":20},{"$f":"P_Total!H77","v":19},{"$f":"P_Total!I77","v":0},{"$f":"P_Total!J77","v":0}]
[2,null,"по служебни правоотношения",null,{"$f":"P_Total!E78","v":0},{"$f":"P_Total!F78","v":0},{"$f":"P_Total!G78","v":196},{"$f":"P_Total!H78","v":199},{"$f":"P_Total!I78","v":0},{"$f":"P_Total!J78","v":0}]
[2,null,"Средногодишни щатни бройки",null,{"$f":"SUM(E59:E60)","v":0},0,214,217,0,0]
[2,null,"по  трудови правоотношения",null,{"$f":"P_Total!E80","v":0},{"$f":"P_Total!F80","v":0},{"$f":"P_Total!G80","v":19},{"$f":"P_Total!H80","v":19},{"$f":"P_Total!I80","v":0},{"$f":"P_Total!J80","v":0}]
[2,null,"по  служебни правоотношения",null,{"$f":"P_Total!E81","v":0},{"$f":"P_Total!F81","v":0},{"$f":"P_Total!G81","v":195},{"$f":"P_Total!H81","v":198},{"$f":"P_Total!I81","v":0},{"$f":"P_Total!J81","v":0}]
[3,null,"Щатни бройки на делегирани бюджети",null,{"$f":"P_Total!E82","v":0},{"$f":"P_Total!F82","v":0},{"$f":"P_Total!G82","v":0},{"$f":"P_Total!H82","v":0},{"$f":"P_Total!I82","v":0},{"$f":"P_Total!J82","v":0}]
[3,null,"Средногодишни щатни бройки на делегирани бюджети",null,{"$f":"P_Total!E83","v":0},{"$f":"P_Total!F83","v":0},{"$f":"P_Total!G83","v":0},{"$f":"P_Total!H83","v":0},{"$f":"P_Total!I83","v":0},{"$f":"P_Total!J83","v":0}]
[1]

{"sheet":"Klasif","index":6,"n_rows":383,"n_cols":3,"rows_kept":383,"cut":false,"hidden":false,"merged":[[0,1,0,2],[1,1,1,2],[382,1,382,2]]}
[null,"КЛАСИФИКАЦИЯ"]
[null,"на областите на политики/функционалните области и бюджетните програми от компетентността и отговорността на съответния първостепенен разпоредител с бюджет, чийто бюджет се включва в държавния бюджет, с изключение на първостепенните разпоредители с бюджет по бюджетите на Народното събрание и на съдебната власт"]
[]
[null,"Код*","Област на политика/Функционална област/Бюджетна програма"]
[]
[null," 0200.00.00","АДМИНИСТРАЦИЯ НА ПРЕЗИДЕНТА"]
[null," 0200.01.00","Функционална област „Осъществяване на конституционните правомощия на президента на Република България“"]
[null," 0200.01.01","Бюджетна програма „Подпомагане и осигуряване дейността на президента и вицепрезидента на Република България при изпълнение на конституционните и законовите им правомощия“"]
[null," "]
[null," 0300.00.00","МИНИСТЕРСКИ СЪВЕТ"]
[null," 0300.01.00","Област „Осигуряване дейността и организацията на работата на Министерския съвет“"]
[null," 0300.01.01","Бюджетна програма „Министерски съвет и организация на дейността му“"]
[null," 0300.01.02","Бюджетна програма „Координация и мониторинг на хоризонтални политики“"]
[null," 0300.02.00","Политика в областта на управлението на средствата от ЕС"]
[null," 0300.02.01","Бюджетна програма „Координация при управление на средствата от ЕС“"]
[null," 0300.03.00","Политика в областта на осъществяването на държавните функции на територията на областите в България"]
[null," 0300.03.01","Бюджетна програма „Осъществяване на държавната политика на областно ниво“"]
[null," 0300.04.00","Политика в областта на правото на вероизповедание"]
[null," 0300.04.01","Бюджетна програма „Вероизповедания“"]
[null," 0300.05.00","Политика в областта на архивното дело"]
[null," 0300.05.01","Бюджетна програма „Национален архивен фонд“"]
[null," 0300.06.00","Бюджетна програма „Администрация“"]
[null," 0300.07.00","Други бюджетни програми"]
[null," 0300.07.01","Бюджетна програма „Други дейности и услуги“"]
[null," 0300.07.02","Бюджетна програма „Убежище и бежанци“"]
[null," "]
[null," 0400.00.00","КОНСТИТУЦИОНЕН СЪД"]
[null," 0400.01.00","Функционална област „Върховенство на Конституцията“"]
[null," 0400.01.01","Бюджетна програма „Тълкуване на Конституцията“"]
[null," "]
[null," 0500.00.00","СМЕТНА ПАЛАТА"]
[null," 0500.01.00","Функционална област „Контрол по изпълнението на бюджета и управлението на публичните средства и дейности“"]
[null," 0500.01.01","Бюджетна програма „Независим, ефективен и ефикасен одит, подпомагащ доброто управление и отчетността на публичните средства и дейности“"]
[null," "]
[null," 1000.00.00","МИНИСТЕРСТВО НА ФИНАНСИТЕ"]
[null," 1000.01.00","Политика в областта на устойчивите и прозрачни публични финанси"]
[null," 1000.01.01","Бюджетна програма „Бюджет и финансово управление“"]
[null," 1000.01.02","Бюджетна програма „Защита на публичните финансови интереси“"]
[null," 1000.02.00","Политика в областта на ефективното събиране на всички държавни приходи"]
[null," 1000.02.01","Бюджетна програма „Администриране на държавните приходи“"]
[null," 1000.03.00","Политика в областта на защитата на обществото и икономиката от финансови измами, контрабанда на стоки, изпиране на пари и финансиране на тероризма"]
[null," 1000.03.01","Бюджетна програма „Интегриране на финансовата система във финансовата система на ЕС“"]
[null," 1000.03.02","Бюджетна програма „Митнически контрол и надзор (нефискален)“"]
[null," 1000.04.00","Политика в областта на управлението на дълга"]
[null," 1000.04.01","Бюджетна програма „Управление на ликвидността“"]
[null," 1000.05.00","Други бюджетни програми"]
[null," 1000.05.01","Бюджетна програма „Национален компенсационен жилищен фонд“"]
[null," 1000.06.00","Бюджетна програма „Администрация“"]
[null," "]
[null," 1100.00.00","МИНИСТЕРСТВО НА ВЪНШНИТЕ РАБОТИ"]
[null," 1100.01.00","Политика в областта на активната двустранна и многостранна дипломация"]
[null," 1100.01.01","Бюджетна програма „Принос за формиране на политики на НАТО, обща външна политика и политика на сигурност на ЕС и участие на България в ОССЕ“"]
[null," 1100.01.02","Бюджетна програма „Европейска политика. Регионално и двустранно сътрудничество с държавите от ЮИЕ. Двустранни отношения с държавите-членки на ЕС, ЕИП, ЕАСТ и с Обединеното Кралство“"]
[null," 1100.01.03","Бюджетна програма „Многостранно сътрудничество и глобални политики“"]
[null," 1100.01.04","Бюджетна програма „Двустранни отношения с държави извън ЕС и ЕИП“"]
[null," 1100.01.05","Бюджетна програма „Консулска дипломация и управление на кризи“"]
[null," 1100.01.06","Бюджетна програма „Международно сътрудничество за развитие и хуманитарна помощ“"]
[null," 1100.01.07","Бюджетна програма „Изграждане на позитивен образ на България зад граница и подкрепа за българските общности, организации и инициативи на българите в чужбина“"]
[null," 1100.01.08","Бюджетна програма „Осигуряване на прозрачност и обществена подкрепа за външната политика“"]
[null," 1100.01.09","Бюджетна програма „Обучение и професионална квалификация на служителите в дипломатическата служба“"]
[null," 1100.01.10","Бюджетна програма „Ефективно функциониране на външнополитическата дейност“"]
[null," 1100.01.11","Бюджетна програма „Администриране и осигуряване на дейността на Централно управление на МВнР“"]
[null," 1100.01.12","Бюджетна програма „Администриране и осигуряване на дейността на задграничните представителства“"]
[null," 1100.02.00","Политика в областта на публичната дипломация и публичните дейности в подкрепа на целите на външната политика"]
[null," 1100.02.01","Бюджетна програма „Публична дипломация“"]
[null," 1100.02.02","Бюджетна програма „Културна дипломация“"]
[null," 1100.03.00","Политика в областта на подкрепата за българските общности и лицата с българско самосъзнание зад граница"]
[null," 1100.03.01","Бюджетна програма „Подкрепа за българските общности и лицата с българско самосъзнание зад граница; съхраняване на българското културно-историческо наследство“"]
[null," "]
[null," 1200.00.00","МИНИСТЕРСТВО НА ОТБРАНАТА"]
[null," 1200.01.00","Политика в областта на отбранителните способности"]
[null," 1200.01.01","Бюджетна програма „Подготовка и използване на въоръжените сили“"]
[null," 1200.01.02","Бюджетна програма „Управление на човешките ресурси и резерв“"]
[null," 1200.01.03","Бюджетна програма „Военна полиция“"]
[null," 1200.01.04","Бюджетна програма „Медицинско осигуряване“"]
[null," 1200.01.05","Бюджетна програма „Военно-патриотично възпитание и военно-почивно дело“"]
[null," 1200.01.06","Бюджетна програма „Изследвания и технологии“"]
[null," 1200.01.07","Бюджетна програма „Военно образование“"]
[null," 1200.01.08","Бюджетна програма „Административно осигуряване, инфраструктура и управление на риска“"]
[null," 1200.01.09","Бюджетна програма „Управление на инвестиционни проекти“"]
[null," 1200.02.00","Политика в областта на съюзната и международната сигурност"]
[null," 1200.02.01","Бюджетна програма „Членство в НАТО и ЕС и международно сътрудничество“"]
[null," 1200.02.02","Бюджетна програма „Военно разузнаване“"]
[null," "]
[null," 1300.00.00","МИНИСТЕРСТВО НА ВЪТРЕШНИТЕ РАБОТИ"]
[null," 1300.01.00","Политика в областта на противодействието на престъпността и опазването на обществения ред "]
[null," 1300.01.01","Бюджетна програма „Противодействие на престъпността, опазване на обществения ред и превенция“"]
[null," 1300.02.00","Политика в областта на защитата на границите и контрол на миграционните процеси"]
[null," 1300.02.01","Бюджетна програма „Граничен контрол, охрана на държавната граница, регулиране и контрол на миграционните процеси“"]
[null," 1300.03.00","Политика в областта на пожарната безопасност и защитата на населението при извънредни ситуации"]
[null," 1300.03.01","Бюджетна програма „Пожарна безопасност и защита на населението при пожари, бедствия и извънредни ситуации“"]
[null," 1300.04.00","Политика в областта на управлението и развитието на системата на Министерството на вътрешните работи"]
[null," 1300.04.01","Бюджетна програма „Информационно осигуряване и административно обслужване“"]
[null," 1300.04.02","Бюджетна програма „Медицинско обслужване“"]
[null," 1300.04.03","Бюджетна програма „Научни изследвания и разработки, обучение и квалификация“"]
[null," "]
[null," 1400.00.00","МИНИСТЕРСТВО НА ПРАВОСЪДИЕТО"]
[null," 1400.01.00","Политика в областта на правосъдието"]
[null," 1400.01.01","Бюджетна програма „Правна рамка за функционирането на съдебната система“"]
[null," 1400.01.02","Бюджетна програма „Регистри“"]
[null," 1400.01.03","Бюджетна програма „Охрана на съдебната власт“"]
[null," 1400.01.04","Бюджетна програма „Равен достъп до правосъдие“"]
[null," 1400.02.00","Политика в областта на изпълнение на наказанията"]
[null," 1400.02.01","Бюджетна програма „Затвори - изолация на правонарушителите“"]
[null," 1400.02.02","Бюджетна програма „Арести и пробация“"]
[null," 1400.03.00","Бюджетна програма „Администрация“"]
[null," "]
[null," 1500.00.00","МИНИСТЕРСТВО НА ТРУДА И СОЦИАЛНАТА ПОЛИТИКА"]
[null," 1500.01.00","Политика в областта на пазара на труда, свободното движение на работници и трудовата миграция "]
[null," 1500.01.01","Бюджетна програма „Активна политика на пазара на труда“ "]
[null," 1500.01.02","Бюджетна програма „Свободно движение на работници и трудова миграция“"]
[null," 1500.02.00","Политика в областта на трудовите отношения"]
[null," 1500.02.01","Бюджетна програма „Осигуряване на подходящи условия на труд“"]
[null," 1500.03.00","Политика в областта на социалното подпомагане и равнопоставеността на жените и мъжете"]
[null," 1500.03.01","Бюджетна програма „Социални помощи“"]
[null," 1500.03.02","Бюджетна програма „Равнопоставеност на жените и мъжете“"]
[null," 1500.04.00","Политика в областта на хората с увреждания"]
[null," 1500.04.01","Бюджетна програма „Подкрепа на и за хората с увреждания“"]
[null," 1500.05.00","Политика в областта на социалното включване"]
[null," 1500.05.01","Бюджетна програма „Подкрепа за децата и семействата“"]
[null," 1500.06.00","Политика в областта на жизненото равнище, демографското развитие и социалните инвестиции"]
[null," 1500.06.01","Бюджетна програма „Насърчаване, координация и мониторинг на демографското развитие, жизненото равнище и доходите от труд“ "]
[null," 1500.06.02","Бюджетна програма „Насърчаване, развитие и мониторинг на социалната икономика и корпоративната социална отговорност“ "]
[null," 1500.07.00","Бюджетна програма „Администрация“"]
[null," "]
[null," 1600.00.00","МИНИСТЕРСТВО НА ЗДРАВЕОПАЗВАНЕТО"]
[null," 1600.01.00","Политика в областта на промоцията, превенцията и контрола на общественото здраве"]
[null," 1600.01.01","Бюджетна програма „Държавен здравен контрол“"]
[null," 1600.01.02","Бюджетна програма „Промоция и превенция на незаразните болести“"]
[null," 1600.01.03","Бюджетна програма „Профилактика и надзор на заразните болести“"]
[null," 1600.01.04","Бюджетна програма „Намаляване търсенето на наркотични вещества“"]
[null," 1600.02.00","Политика в областта на диагностиката и лечението"]
[null," 1600.02.01","Бюджетна програма „Контрол на медицинските дейности, здравна информация и електронно здравеопазване“"]
[null," 1600.02.02","Бюджетна програма „Осигуряване на медицинска помощ на специфични групи от населението“"]
[null," 1600.02.03","Бюджетна програма „Спешна медицинска помощ“"]
[null," 1600.02.04","Бюджетна програма „Психиатрична помощ“"]
[null," 1600.02.05","Бюджетна програма „Осигуряване на кръв и кръвни продукти“"]
[null," 1600.02.06","Бюджетна програма „Медико-социални грижи за деца в неравностойно положение, майчино и детско здравеопазване“"]
[null," 1600.03.00","Политика в областта на лекарствените продукти и медицинските изделия"]
[null," 1600.03.01","Бюджетна програма „Достъпни и качествени лекарствени продукти и медицински изделия“"]
[null," 1600.04.00","Бюджетна програма „Администрация“"]
[null," "]
[null," 1700.00.00","МИНИСТЕРСТВО НА ОБРАЗОВАНИЕТО И НАУКАТА"]
[null," 1700.01.00","Политика в областта на всеобхватното, достъпно и качествено предучилищно и училищно образование. Учене през целия живот"]
[null," 1700.01.01","Бюджетна програма „Осигуряване на качеството в системата на предучилищното и училищното образование“"]
[null," 1700.01.02","Бюджетна програма „Улесняване на достъпа до образование. Приобщаващо образование“"]
[null," 1700.01.03","Бюджетна програма „Училищно образование“"]
[null," 1700.01.04","Бюджетна програма „Развитие на способностите на децата и учениците“"]
[null," 1700.01.05","Бюджетна програма „Образование на българите в чужбина“"]
[null," 1700.01.06","Бюджетна програма „Учене през целия живот“"]
[null," 1700.02.00","Политика в областта на равен достъп до качествено висше образование и развитие на научния потенциал"]
[null," 1700.02.01","Бюджетна програма „Подобряване на достъпа и повишаване на качеството във висшето образование“"]
[null," 1700.02.02","Бюджетна програма „Студентско подпомагане“"]
[null," 1700.02.03","Бюджетна програма „Международен образователен обмен“"]
[null," 1700.02.04","Бюджетна програма „Оценка и развитие на националния научен потенциал за изграждане на устойчива връзка образование - наука - бизнес като основа за развитие на икономика, базирана на знанието“"]
[null," 1700.02.05","Бюджетна програма „Координация и мониторинг на научния потенциал за интегриране в европейското изследователско пространство и глобалната информационна мрежа“"]
[null," 1700.03.00","Бюджетна програма „Администрация“"]
[null," "]
[null," 1800.00.00","МИНИСТЕРСТВО НА КУЛТУРАТА"]
[null," 1800.01.00","Политика в областта на опазване на движимото и недвижимото културно наследство"]
[null," 1800.01.01","Бюджетна програма „Опазване на недвижимото културно наследство“"]
[null," 1800.01.02","Бюджетна програма „Опазване и представяне на движимото културно наследство и визуалните изкуства“"]
[null," 1800.02.00","Политика в областта на създаване и популяризиране на съвременно изкуство в страната и в чужбина и достъп до качествено художествено образование"]
[null," 1800.02.01","Бюджетна програма „Национален фонд „Култура“"]
[null," 1800.02.02","Бюджетна програма „Филмово изкуство“"]
[null," 1800.02.03","Бюджетна програма „Сценични изкуства“"]
[null," 1800.02.04","Бюджетна програма „Фестивали, конкурси, събития и чествания“"]
[null," 1800.02.05","Бюджетна програма „Авторско право и сродните му права“"]
[null," 1800.02.06","Бюджетна програма „Подпомагане развитието на българската култура и изкуства, на българския книжен сектор, библиотеки и читалища“"]
[null," 1800.02.07","Бюджетна програма „Популяризиране на българската култура в чужбина“"]
[null," 1800.02.08","Бюджетна програма „Обучение на кадри в областта на изкуството и културата“"]
[null," 1800.03.00","Бюджетна програма „Администрация“"]
[null," "]
[null," 1900.00.00","МИНИСТЕРСТВО НА ОКОЛНАТА СРЕДА И ВОДИТЕ"]
[null," 1900.01.00","Политика в областта на опазването и ползването на компонентите на околната среда"]
[null," 1900.01.01","Бюджетна програма „Оценка, управление и опазване на водите на Република България“"]
[null," 1900.01.02","Бюджетна програма „Интегрирана система за управление на отпадъците и опазване на почвите“"]
[null," 1900.01.03","Бюджетна програма „Намаляване на вредните емисии в атмосферата и подобряване качеството на атмосферния въздух“"]
[null," 1900.01.04","Бюджетна програма „Съхраняване, укрепване и възстановяване на екосистеми, местообитания, видове и генетичните им ресурси“"]
[null," 1900.01.05","Бюджетна програма „Информиране, участие на обществеността в процеса на вземане на решения и прилагане на механизмите за контрол“"]
[null," 1900.01.06","Бюджетна програма „Оценка и управление на въздействието върху околната среда“"]
[null," 1900.01.07","Бюджетна програма „Управление на дейностите по изменение на климата“"]
[null," 1900.02.00","Политика в областта на Националната система за мониторинг на околната среда и информационна обезпеченост"]
[null," 1900.02.01","Бюджетна програма „Национална система за мониторинг на околната среда и информационна обезпеченост“"]
[null," 1900.03.00","Други бюджетни програми"]
[null," 1900.03.01","Бюджетна програма „Дейности по метеорология, хидрология и агрометеорология“"]
[null," 1900.04.00","Бюджетна програма „Администрация“"]
[null," "]
[null," 2000.00.00","МИНИСТЕРСТВО НА ИКОНОМИКАТА И ИНДУСТРИЯТА"]
[null," 2000.01.00","Политика в областта на устойчивото икономическо развитие и конкурентоспособност"]
[null," 2000.01.01","Бюджетна програма „Облекчаване на регулации, опростяване на процедури по предоставяне на административни услуги“"]
[null," 2000.01.02","Бюджетна програма „Насърчаване на малките и средните предприятия и индустрията“"]
[null," 2000.01.03","Бюджетна програма „Закрила на обектите на индустриална собственост“"]
[null," 2000.01.04","Бюджетна програма „Инфраструктура по качеството в подкрепа развитието на икономиката“"]
[null," 2000.01.05","Бюджетна програма „Подобряване на възможностите за участие в единния европейски пазар“"]
[null," 2000.01.06","Бюджетна програма „Преструктуриране и ефективно управление на държавната собственост“"]
[null," 2000.01.07","Бюджетна програма „Защита на потребителите“"]
[null," 2000.02.00","Политика в областта на ефективното външноикономическо сътрудничество"]
[null," 2000.02.01","Бюджетна програма „Реализация на експортния потенциал и участие в търговската политика на Европейския съюз“"]
[null," 2000.03.00","Бюджетна програма „Администрация“"]
[null," "]
[null," 2100.00.00","МИНИСТЕРСТВО НА РЕГИОНАЛНОТО РАЗВИТИЕ И БЛАГОУСТРОЙСТВОТО"]
[null," 2100.01.00","Политика за интегрирано развитие на регионите за постигане на растеж и подобряване качеството на жизнената среда "]
[null," 2100.01.01","Бюджетна програма „Стратегическо планиране на регионалното и пространственото развитие, децентрализация и териториално сътрудничество“"]
[null," 2100.01.02","Бюджетна програма „Подобряване на жилищните условия на маргинализирани групи от населението“"]
[null," 2100.01.03","Бюджетна програма „Ефективно управление на държавната собственост, държавното участие в търговските дружества и държавни предприятия и развитие на публично-частното партньорство и концесионирането“"]
[null," 2100.02.00","Политика за подобряване на инвестиционния процес, поддържане, модернизация и изграждане на техническата инфраструктура"]
[null," 2100.02.01","Бюджетна програма „Рехабилитация и изграждане на пътна инфраструктура“"]
[null," 2100.02.02","Бюджетна програма „Устройство на територията, благоустройство, геозащита, водоснабдяване и канализация“"]
[null," 2100.02.03","Бюджетна програма „Нормативно регулиране и контрол на строителните продукти и инвестиционния процес в строителството“"]
[null," 2100.03.00","Бюджетна програма „Ефективна администрация и координация“"]
[null," "]
[null," 2200.00.00","МИНИСТЕРСТВО НА ЗЕМЕДЕЛИЕТО И ХРАНИТЕ"]
[null," 2200.01.00","Политика в областта на земеделието и селските райони"]
[null," 2200.01.01","Бюджетна програма „Земеделски земи“"]
[null," 2200.01.02","Бюджетна програма „Природни ресурси в селските райони“ "]
[null," 2200.01.03","Бюджетна програма „Растениевъдство“"]
[null," 2200.01.04","Бюджетна програма „Хидромелиорации“"]
[null," 2200.01.05","Бюджетна програма „Животновъдство“"]
[null," 2200.01.06","Бюджетна програма „Организация на пазарите и държавни помощи“"]
[null," 2200.01.07","Бюджетна програма „Агростатистика, анализи и прогнози“"]
[null," 2200.01.08","Бюджетна програма „Научни изследвания“"]
[null," 2200.01.09","Бюджетна програма „Съвети и консултации“"]
[null," 2200.01.10","Бюджетна програма „Земеделска техника“"]
[null," 2200.01.11","Бюджетна програма „Безопасност по хранителната верига“"]
[null," 2200.01.12","Бюджетна програма „Подобряване на живота в селските райони“"]
[null," 2200.02.00","Политика в областта на рибарството и аквакултурите"]
[null," 2200.02.01","Бюджетна програма „Рибарство и аквакултури“"]
[null," 2200.03.00","Политика в областта на съхраняването и увеличаването на горите и дивеча"]
[null," 2200.03.01","Бюджетна програма „Специализирани дейности в горските територии“"]
[null," 2200.03.02","Бюджетна програма „Планиране, опазване от посегателства, пожари и лесозащита“"]
[null," 2200.04.00","Бюджетна програма „Администрация“"]
[null," "]
[null," 2300.00.00","МИНИСТЕРСТВО НА ТРАНСПОРТА И СЪОБЩЕНИЯТА"]
[null," 2300.01.00","Политика в областта на транспорта"]
[null," 2300.01.01","Бюджетна програма „Развитие и поддръжка на транспортната инфраструктура“"]
[null," 2300.01.02","Бюджетна програма „Организация, управление на транспорта, осигуряване на безопасност, сигурност и екологосъобразност“"]
[null," 2300.01.03","Бюджетна програма „Търсене и спасяване във водния и въздушния транспорт“"]
[null," 2300.01.04","Бюджетна програма „Разследване на произшествия във въздушния, водния и железопътния транспорт“"]
[null," 2300.02.00","Политика в областта на съобщенията и цифровата свързаност"]
[null," 2300.02.01","Бюджетна програма „Развитие на съобщенията и цифровата свързаност“"]
[null," 2300.03.00","Бюджетна програма „Административно обслужване, медицинска и психологическа експертиза“"]
[null," "]
[null," 2400.00.00","МИНИСТЕРСТВО НА ЕНЕРГЕТИКАТА"]
[null," 2400.01.00","Политика в областта на устойчивото и конкурентоспособно енергийно развитие"]
[null," 2400.01.01","Бюджетна програма „Ефективно функциониране на енергийните предприятия, инфраструктура и пазари“"]
[null," 2400.01.02","Бюджетна програма „Сигурност при енергоснабдяването и при управление на РАО и ИЕЯС“"]
[null," 2400.01.03","Бюджетна програма „Устойчиво енергийно развитие“"]
[null," 2400.01.04","Бюджетна програма „Подобряване на процесите на концесиониране и управление на подземните богатства и геоложките изследвания“"]
[null," 2400.02.00","Бюджетна програма „Администрация“"]
[null," "]
[null," 2500.00.00","МИНИСТЕРСТВО НА МЛАДЕЖТА И СПОРТА"]
[null," 2500.01.00","Политика в областта на спорта за учащи и спорта в свободното време"]
[null," 2500.01.01","Бюджетна програма „Спорт за учащи“"]
[null," 2500.01.02","Бюджетна програма „Спорт в свободното време“"]
[null," 2500.02.00","Политика в областта на спорта за високи постижения"]
[null," 2500.02.01","Бюджетна програма „Олимпийска подготовка“"]
[null," 2500.02.02","Бюджетна програма „Спорт за високи постижения“"]
[null," 2500.03.00","Политика в областта на привеждането на спортните обекти и съоръжения във вид, отговарящ на съвременните международни стандарти"]
[null," 2500.03.01","Бюджетна програма „Спортни обекти и съоръжения“"]
[null," 2500.04.00","Политика в областта на усвояването и прилагането на добри международни практики за спорта"]
[null," 2500.04.01","Бюджетна програма „Изграждане на високоефективен капацитет за активно международно сътрудничество в сферата на физическото възпитание, спорта и социалния туризъм“"]
[null," 2500.05.00","Политика в областта на младите хора"]
[null," 2500.05.01","Бюджетна програма „Младите в действие“"]
[null," 2500.06.00","Бюджетна програма „Администрация“"]
[null," "]
[null," 3000.00.00","ДЪРЖАВНА АГЕНЦИЯ „НАЦИОНАЛНА СИГУРНОСТ“"]
[null," 3000.01.00","Политика в областта на защитата на националната сигурност"]
[null," 3000.01.01","Бюджетна програма „Национална сигурност“"]
[null," "]
[null," 3200.00.00","КОМИСИЯ ЗА РАЗКРИВАНЕ НА ДОКУМЕНТИТЕ И ЗА ОБЯВЯВАНЕ НА ПРИНАДЛЕЖНОСТ НА БЪЛГАРСКИ ГРАЖДАНИ КЪМ ДЪРЖАВНА СИГУРНОСТ И РАЗУЗНАВАТЕЛНИТЕ СЛУЖБИ НА БЪЛГАРСКАТА НАРОДНА АРМИЯ"]
[null," 3200.01.00","Функционална област „Архив на Държавна сигурност и разузнавателните служби на Българската народна армия“"]
[null," 3200.01.01","Бюджетна програма „Достъп до архивните документи и обявяване на принадлежност на български граждани към Държавна сигурност и разузнавателните служби на Българската народна армия“"]
[null," "]
[null," 3300.00.00","КОМИСИЯ ЗА ЗАЩИТА ОТ ДИСКРИМИНАЦИЯ"]
[null," 3300.01.00","Функционална област „Противодействие и защита на гражданите от дискриминация“"]
[null," 3300.01.01","Бюджетна програма „Противодействие на дискриминация“"]
[null," "]
[null," 3400.00.00","КОМИСИЯ ЗА ЗАЩИТА НА ЛИЧНИТЕ ДАННИ"]
[null," 3400.01.00","Функционална област „Защита на личните данни на физическите лица“"]
[null," 3400.01.01","Бюджетна програма „Защита на физическите лица при обработването на лични данни и свободното движение на такива данни“"]
[null," "]
[null," 3700.00.00","КОМИСИЯ ЗА ОТНЕМАНЕ НА НЕЗАКОННО ПРИДОБИТОТО ИМУЩЕСТВО"]
[null," 3700.01.00","Функционална област „Предотвратяване на възможностите за незаконно придобиване на имущество“"]
[null," 3700.01.01","Бюджетна програма „Установяване и отнемане на незаконно придобито имущество“"]
[null," "]
[null," 3800.00.00","НАЦИОНАЛНА СЛУЖБА ЗА ОХРАНА"]
[null," 3800.01.00","Функционална област „Осигуряване безопасността на охраняваните лица и обекти и предоставяне на специализиран транспорт“"]
[null," 3800.01.01","Бюджетна програма „Държавна охрана“"]
[null," "]
[null," 3900.00.00","ДЪРЖАВНА АГЕНЦИЯ „РАЗУЗНАВАНЕ”"]
[null," 3900.01.00","Политика в областта на информационно-аналитичното обезпечаване на държавното ръководство, подпомагащо процеса на вземане на решения с цел защита на националната сигурност и интересите на Република България"]
[null," 3900.01.01","Бюджетна програма „Разузнаване“"]
[null," "]
[null," 4000.00.00","ОМБУДСМАН НА РЕПУБЛИКА БЪЛГАРИЯ"]
[null," 4000.01.00","Функционална област „Защита правата на гражданите“"]
[null," 4000.01.01","Бюджетна програма „Застъпничество и защита на правата и свободите на гражданите“"]
[null," "]
[null," 4100.00.00","НАЦИОНАЛЕН СТАТИСТИЧЕСКИ ИНСТИТУТ"]
[null," 4100.01.00","Функционална област „Безпристрастна, обективна, навременна и точна информация за състоянието на Република България“"]
[null," 4100.01.01","Бюджетна програма „Национална статистическа програма“"]
[null," "]
[null," 4200.00.00","КОМИСИЯ ЗА ЗАЩИТА НА КОНКУРЕНЦИЯТА"]
[null," 4200.01.00","Функционална област „Защита на конкуренцията и контрол на законосъобразността при процедурите по възлагане на обществени поръчки и предоставяне на концесии“"]
[null," 4200.01.01","Бюджетна програма „Защита на конкуренцията и свободната стопанска инициатива, осъществяване на контрол за законосъобразност при процедурите по възлагане на обществени поръчки и предоставяне на концесии“"]
[null," "]
[null," 4300.00.00","КОМИСИЯ ЗА РЕГУЛИРАНЕ НА СЪОБЩЕНИЯТА"]
[null," 4300.01.00","Функционална област „Електронни съобщения и пощенски услуги“"]
[null," 4300.01.01","Бюджетна програма „Регулиране на електронните съобщения и пощенските услуги“"]
[null," "]
[null," 4400.00.00","СЪВЕТ ЗА ЕЛЕКТРОННИ МЕДИИ"]
[null," 4400.01.00","Функционална област „Регулиране на медийните услуги и на услуги на платформи за споделяне на видеоклипове“"]
[null," 4400.01.01","Бюджетна програма „Надзор, лицензионни, регистрационни и правни режими“"]
[null," "]
[null," 4500.00.00","КОМИСИЯ ЗА ЕНЕРГИЙНО И ВОДНО РЕГУЛИРАНЕ"]
[null," 4500.01.00","Функционална област „Държавна регулация в енергетиката и ВиК сектора“"]
[null," 4500.01.01","Бюджетна програма „Държавно регулиране на дейностите в енергетиката и ВиК сектора“"]
[null," "]
[null," 4600.00.00","АГЕНЦИЯ ЗА ЯДРЕНО РЕГУЛИРАНЕ"]
[null," 4600.01.00","Функционална област „Регулация на ядрената безопасност и радиационната защита на Република България“"]
[null," 4600.01.01","Бюджетна програма „Регулиране и контрол на ядрената безопасност и радиационната защита на Република България“"]
[null," "]
[null," 4700.00.00","КОМИСИЯ ЗА ФИНАНСОВ НАДЗОР"]
[null," 4700.01.00","Функционална област „Регулация и надзор на небанковия финансов сектор“"]
[null," 4700.01.01","Бюджетна програма „Подобряване на регулацията и надзора на небанковия финансов сектор“"]
[null," "]
[null," 4800.00.00","ДЪРЖАВНА КОМИСИЯ ПО СИГУРНОСТТА НА ИНФОРМАЦИЯТА"]
[null," 4800.01.00","Функционална област „Защита на класифицираната информация“"]
[null," 4800.01.01","Бюджетна програма „Организиране, осъществяване, координиране и контролиране на дейността по защитата на класифицираната информация и осигуряване на еднаквата ѝ защита в национален и международен план“"]
[null," "]
[null," 5300.00.00","ДЪРЖАВНА АГЕНЦИЯ „ДЪРЖАВЕН РЕЗЕРВ И ВОЕННОВРЕМЕННИ ЗАПАСИ“"]
[null," 5300.01.00","Политика в областта на държавните резерви, военновременните запаси и задължителните запаси от нефт и нефтопродукти"]
[null," 5300.01.01","Бюджетна програма „Държавни резерви и военновременни запаси“"]
[null," 5300.01.02","Бюджетна програма „Запаси за извънредни ситуации от нефт и нефтопродукти и целеви запаси от нефтопродукти“"]
[null," "]
[null," 7100.00.00","МИНИСТЕРСТВО НА ТУРИЗМА"]
[null," 7100.01.00","Политика в областта на устойчивото развитие на туризма"]
[null," 7100.01.01","Бюджетна програма „Подобряване на политиките и регулациите в сектора на туризма“"]
[null," 7100.01.02","Бюджетна програма „Развитие на националната туристическа реклама и международно сътрудничество в областта на туризма“"]
[null," 7100.02.00","Бюджетна програма „Администрация“"]
[null," "]
[null," 7400.00.00","МИНИСТЕРСТВО НА ИНОВАЦИИТЕ И РАСТЕЖА"]
[null," 7400.01.00","Политика в областта на развитието на инвестициите и иновациите в подкрепа на растежа на българската икономика"]
[null," 7400.01.01","Бюджетна програма „Насърчаване на иновациите“"]
[null," 7400.01.02","Бюджетна програма „Насърчаване на инвестициите“"]
[null," 7400.02.00","Бюджетна програма „Администрация“"]
[null," "]
[null," 7500.00.00","МИНИСТЕРСТВО НА ЕЛЕКТРОННОТО УПРАВЛЕНИЕ"]
[null," 7500.01.00","Политика в областта на електронното управление"]
[null," 7500.01.01","Бюджетна програма „Електронно управление и информационно общество“"]
[null," "]
[null," 8100.00.00","КОМИСИЯ ЗА ПРОТИВОДЕЙСТВИЕ НА КОРУПЦИЯТА"]
[null," 8100.01.00","Функционална област „Осъществяване на превенция, ефективно противодействие на корупцията и установяване на конфликт на интереси“"]
[null," 8100.01.01","Бюджетна програма „Превенция и противодействие на прояви за корупция от лица, заемащи публични длъжности, и установяване конфликт на интереси“"]
[null," "]
[null," 8200.00.00","ЦЕНТРАЛНА ИЗБИРАТЕЛНА КОМИСИЯ"]
[null," 8200.01.00","Функционална област „Организиране и произвеждане на законосъобразни, честни и свободни избори и национални референдуми“"]
[null," 8200.01.01","Бюджетна програма „Избори и национални референдуми“"]
[null," 8200.01.02","Бюджетна програма „Изграждане на професионална администрация и ефективно управление“"]
[null," "]
[null," 8300.00.00","КОМИСИЯ ЗА ПУБЛИЧЕН НАДЗОР НАД РЕГИСТРИРАНИТЕ ОДИТОРИ "]
[null," 8300.01.00","Функционална област „Осъществяване на публичен надзор над регистрираните одитори“"]
[null," 8300.01.01","Бюджетна програма „Публичен надзор над регистрираните одитори“"]
[null," "]
[null," 8400.00.00","ДЪРЖАВЕН ФОНД „ЗЕМЕДЕЛИЕ“"]
[null," 8400.01.00","Политика на Министерството на земеделието и храните в областта на земеделието и селските райони"]
[null," 8400.01.01","Бюджетна програма „Развитие на селските райони“"]
[null," 8400.01.02","Бюджетна програма „Селскостопански пазарни механизми“"]
[null," 8400.01.03","Бюджетна програма „Директни плащания и мерки за специфично подпомагане“"]
[null," 8400.01.04","Бюджетна програма „Държавни помощи, национални доплащания и САПАРД“"]
[null," 8400.02.00","Политика на Министерството на земеделието и храните в областта на рибарството и аквакултурите"]
[null," 8400.02.01","Бюджетна програма „Рибарство и аквакултури“"]
[null," 8400.03.00","Бюджетна програма „Администрация“"]
[null," "]
[null," 8500.00.00","НАЦИОНАЛНО БЮРО ЗА КОНТРОЛ НА СПЕЦИАЛНИТЕ РАЗУЗНАВАТЕЛНИ СРЕДСТВА"]
[null," 8500.01.00","Функционална област „Наблюдение на процедурите по разрешаване, прилагане и използване на специални разузнавателни средства“"]
[null," 8500.01.01","Бюджетна програма „Контрол на специалните разузнавателни средства“"]
[null," "]
[null," 8600.00.00","ДЪРЖАВНА АГЕНЦИЯ „ТЕХНИЧЕСКИ ОПЕРАЦИИ“"]
[null," 8600.01.00","Политика в областта на осигуряването и прилагането на специални разузнавателни средства с цел защита на националната сигурност и опазване на обществения ред"]
[null," 8600.01.01","Бюджетна програма „Технически операции“"]
[]
[null,"* Класификационният код на съответната област на политика/функционална област/бюджетна програма представлява осемзначна комбинация от числа, където първите четири цифри са кодът на съответната бюджетна организация, следващите две цифри са идентификаторът на съответната област на политика/функционална област и съответно последните две цифри са идентификаторът на бюджетната програма."]

{"sheet":"Inf","index":7,"n_rows":40,"n_cols":3,"rows_kept":40,"cut":false,"hidden":true,"merged":[]}
[2,2,{"$f":"SUM(C11:C40)","v":1}]
["Hide Rows"]
["All Rows"]
[]
[]
["Hide Columns"]
["All Columns"]
[]
[]
[]
[null,"P (1)",1]
[null,"P (2)"]
[null,"P (3)"]
[null,"P (4)"]
[null,"P (5)"]
[null,"P (6)"]
[null,"P (7)"]
[null,"P (8)"]
[null,"P (9)"]
[null,"P (10)"]
[null,"P (11)"]
[null,"P (12)"]
[null,"P (13)"]
[null,"P (14)"]
[null,"P (15)"]
[null,"P (16)"]
[null,"P (17)"]
[null,"P (18)"]
[null,"P (19)"]
[null,"P (20)"]
[null,"P (21)"]
[null,"P (22)"]
[null,"P (23)"]
[null,"P (24)"]
[null,"P (25)"]
[null,"P (26)"]
[null,"P (27)"]
[null,"P (28)"]
[null,"P (29)"]
[null,"P (30)"]

{"sheet":"P","index":8,"n_rows":84,"n_cols":10,"rows_kept":84,"cut":false,"hidden":true,"merged":[]}
[1]
[1]
[1]
[1,"Код …","Бюджетна програма ................................................................................"]
[1,"Код …","към Област на политика/функционална област ..................................."]
[1]
[1]
[1,null,{"$f":"IF(ISBLANK(P_Total!C8),\" \",P_Total!C8)","v":"П О К А З А Т Е Л И"},{"$f":"IF(ISBLANK(P_Total!D8),\" \",P_Total!D8)","v":" "},{"$f":"IF(ISBLANK(P_Total!E8),\" \",P_Total!E8)","v":"Закон"},{"$f":"IF(ISBLANK(P_Total!F8),\" \",P_Total!F8)","v":"Уточнен"},{"$f":"IF(ISBLANK(P_Total!G8),\" \",P_Total!G8)","v":"Отчет"},{"$f":"IF(ISBLANK(P_Total!H8),\" \",P_Total!H8)","v":"Отчет"},{"$f":"IF(ISBLANK(P_Total!I8),\" \",P_Total!I8)","v":"Отчет"},{"$f":"IF(ISBLANK(P_Total!J8),\" \",P_Total!J8)","v":"Отчет"}]
[1,null,{"$f":"IF(ISBLANK(P_Total!C9),\" \",P_Total!C9)","v":" "},{"$f":"IF(ISBLANK(P_Total!D9),\" \",P_Total!D9)","v":" "},{"$f":"IF(ISBLANK(P_Total!E9),\" \",P_Total!E9)","v":" "},{"$f":"IF(ISBLANK(P_Total!F9),\" \",P_Total!F9)","v":"план"},{"$f":"IF(ISBLANK(P_Total!G9),\" \",P_Total!G9)","v":"към 31 март"},{"$f":"IF(ISBLANK(P_Total!H9),\" \",P_Total!H9)","v":"към 30 юни"},{"$f":"IF(ISBLANK(P_Total!I9),\" \",P_Total!I9)","v":"към 30 септември"},{"$f":"IF(ISBLANK(P_Total!J9),\" \",P_Total!J9)","v":"към 31 декември"}]
[1,null,{"$f":"IF(ISBLANK(P_Total!C10),\" \",P_Total!C10)","v":"(в евро)"},{"$f":"IF(ISBLANK(P_Total!D10),\" \",P_Total!D10)","v":" "},{"$f":"IF(ISBLANK(P_Total!E10),\" \",P_Total!E10)","v":"2026 г."},{"$f":"IF(ISBLANK(P_Total!F10),\" \",P_Total!F10)","v":"2026 г."},{"$f":"IF(ISBLANK(P_Total!G10),\" \",P_Total!G10)","v":"2026 г."},{"$f":"IF(ISBLANK(P_Total!H10),\" \",P_Total!H10)","v":"2026 г."},{"$f":"IF(ISBLANK(P_Total!I10),\" \",P_Total!I10)","v":"2026 г."},{"$f":"IF(ISBLANK(P_Total!J10),\" \",P_Total!J10)","v":"2026 г."}]
[1,null,{"$f":"IF(ISBLANK(P_Total!C11),\" \",P_Total!C11)","v":" "},{"$f":"IF(ISBLANK(P_Total!D11),\" \",P_Total!D11)","v":" "},{"$f":"IF(ISBLANK(P_Total!E11),\" \",P_Total!E11)","v":" "},{"$f":"IF(ISBLANK(P_Total!F11),\" \",P_Total!F11)","v":" "},{"$f":"IF(ISBLANK(P_Total!G11),\" \",P_Total!G11)","v":" "},{"$f":"IF(ISBLANK(P_Total!H11),\" \",P_Total!H11)","v":" "},{"$f":"IF(ISBLANK(P_Total!I11),\" \",P_Total!I11)","v":" "},{"$f":"IF(ISBLANK(P_Total!J11),\" \",P_Total!J11)","v":" "}]
[1,null,{"$f":"IF(ISBLANK(P_Total!C12),\" \",P_Total!C12)","v":" A"},{"$f":"IF(ISBLANK(P_Total!D12),\" \",P_Total!D12)","v":" "},{"$f":"IF(ISBLANK(P_Total!E12),\" \",P_Total!E12)","v":1},{"$f":"IF(ISBLANK(P_Total!F12),\" \",P_Total!F12)","v":2},{"$f":"IF(ISBLANK(P_Total!G12),\" \",P_Total!G12)","v":3},{"$f":"IF(ISBLANK(P_Total!H12),\" \",P_Total!H12)","v":4},{"$f":"IF(ISBLANK(P_Total!I12),\" \",P_Total!I12)","v":5},{"$f":"IF(ISBLANK(P_Total!J12),\" \",P_Total!J12)","v":6}]
[1]
[1,null,"РАЗХОДИ - ВСИЧКО","02",{"$f":"E16","v":0},0,0,0,0,0]
[1]
[1,null,"Общо разходи",null,{"$f":"SUBTOTAL(9,E17:E71)","v":0},0,0,0,0,0]
[1,"1.","Общо ведомствени разходи",null,{"$f":"SUBTOTAL(9,E18:E36)","v":0},0,0,0,0,0]
[{"$f":"IF(MAX(E18:J18)=0,IF(MIN(E18:J18)=0,3,2),2)","v":3},null,"   Персонал",null,{"$f":"SUBTOTAL(9,E19:E22)","v":0},0,0,0,0,0]
[3,null,"      Заплати и възнаграждения за персонала, нает по трудови и\n      служебни правоотношения","01-00"]
[3,null,"      Други възнаграждения и плащания за персонала","02-00"]
[3,null,"      Задължителни осигурителни вноски от работодатели","05-00"]
[3,null,"      Вноски за доброволно осигуряване","08-00"]
[3,null,"   Издръжка",null,{"$f":"SUBTOTAL(9,E24:E30)","v":0},0,0,0,0,0]
[3,null,"      Издръжка","10-00"]
[{"$f":"IF(MAX(E25:J25)=0,IF(MIN(E25:J25)=0,3,2),2)","v":3},null,"      Платени данъци, такси и административни санкции","19-00"]
[3,null,"      Лихви",null,{"$f":"SUBTOTAL(9,E27:E28)","v":0},0,0,0,0,0]
[3,null,"         Лихви по външни заеми"]
[3,null,"         Лихви по вътрешни заеми"]
[{"$f":"IF(MAX(E29:J29)=0,IF(MIN(E29:J29)=0,3,2),2)","v":3},null,"      Текущи трансфери, обезщетения и помощи за домакинствата","42-00"]
[3,null,"      Разходи за членски внос и участие в нетърговски организации и\n      дейности","46-00"]
[3,null,"   Капиталови разходи",null,{"$f":"SUBTOTAL(9,E32:E36)","v":0},0,0,0,0,0]
[3,null,"      Основен ремонт на дълготрайни материални активи","51-00"]
[3,null,"      Придобиване на дълготрайни материални активи","52-00"]
[3,null,"      Придобиване на нематериални дълготрайни активи","53-00"]
[3,null,"      Придобиване на земя","54-00"]
[3,null,"      Капиталови трансфери","55-00"]
[1,"2.","Администрирани разходни параграфи по бюджета",null,{"$f":"SUBTOTAL(9,E38:E70)","v":0},0,0,0,0,0]
[{"$f":"IF(MAX(E38:J38)=0,IF(MIN(E38:J38)=0,3,2),2)","v":3},null,"Текущи разходи",null,{"$f":"SUBTOTAL(9,E39:E57)","v":0},0,0,0,0,0]
[3,null,"Персонал",null,{"$f":"SUBTOTAL(9,E40:E43)","v":0},0,0,0,0,0]
[{"$f":"IF(MAX(E40:J40)=0,IF(MIN(E40:J40)=0,3,2),2)","v":3},null,"Заплати и възнаграждения за персонала, нает по трудови и служебни правоотношения","01-00"]
[{"$f":"IF(MAX(E41:J41)=0,IF(MIN(E41:J41)=0,3,2),2)","v":3},null,"Други възнаграждения и плащания за персонала","02-00"]
[3,null,"Задължителни осигурителни вноски от работодатели","05-00"]
[3,null,"Вноски за доброволно осигуряване","08-00"]
[3,null,"Издръжка","10-00"]
[{"$f":"IF(MAX(E45:J45)=0,IF(MIN(E45:J45)=0,3,2),2)","v":3},null,"Платени данъци, такси и административни санкции","19-00"]
[3,null,"Лихви",null,{"$f":"SUBTOTAL(9,E47:E48)","v":0},0,0,0,0,0]
[3,null,"Лихви по външни заеми"]
[3,null,"Лихви по вътрешни заеми"]
[3,null,"Здравноосигурителни плащания","39-00"]
[3,null,"Стипендии","40-00"]
[3,null,"Пенсии","41-00"]
[3,null,"Текущи трансфери, обезщетения и помощи за домакинствата","42-00"]
[3,null,"Субсидии и други текущи трансфери за нефинансови предприятия","43-00"]
[3,null,"Субсидии и други текущи трансфери за осъществяване на болнична помощ ","43-02"]
[{"$f":"IF(MAX(E55:J55)=0,IF(MIN(E55:J55)=0,3,2),2)","v":3},null,"Субсидии и други текущи трансфери за финансови институции","44-00"]
[3,null,"Субсидии и други текущи трансфери за юридически лица с нестопанска цел","45-00"]
[3,null,"Разходи за членски внос и участие в нетърговски организации и дейности","46-00"]
[3,null,"Предоставени текущи и капиталови трансфери за чужбина","49-00",{"$f":"SUBTOTAL(9,E59:E60)","v":0},0,0,0,0,0]
[{"$f":"IF(MAX(E59:J59)=0,IF(MIN(E59:J59)=0,3,2),2)","v":3},null,"Текущи трансфери за чужбина","49-01"]
[3,null,"Капиталови трансфери за чужбина","49-02"]
[3,null,"Капиталови разходи",null,{"$f":"SUBTOTAL(9,E62:E66)","v":0},0,0,0,0,0]
[3,null,"Основен ремонт на дълготрайни материални активи","51-00"]
[3,null,"Придобиване на дълготрайни материални активи","52-00"]
[3,null,"Придобиване на нематериални дълготрайни активи","53-00"]
[3,null,"Придобиване на земя","54-00"]
[3,null,"Капиталови трансфери","55-00"]
[3,null,"Прираст на държавния резерв и изкупуване на земеделска продукция",null,{"$f":"SUBTOTAL(9,E68:E70)","v":0},0,0,0,0,0]
[3,null,"Плащания за попълване на държавния резерв","57-01"]
[3,null,"Постъпления от продажба на държавния резерв (-)","40-71"]
[3,null,"Плащания за изкупуване на земеделска продукция","57-02"]
[3,"3.","Резерв за непредвидени и неотложни разходи","00-98"]
[1]
[1,null,"НАТУРАЛНИ ПОКАЗАТЕЛИ"]
[{"$f":"IF(MAX(E74:J74)=0,IF(MIN(E74:J74)=0,3,2),2)","v":3},null,"Щатни бройки - общо",null,{"$f":"E76+E82","v":0},0,0,0,0,0]
[3,null,"Средногодишни щатни бройки - общо",null,{"$f":"E79+E83","v":0},0,0,0,0,0]
[3,null,"Щатни бройки",null,{"$f":"SUM(E77:E78)","v":0},0,0,0,0,0]
[3,null,"по трудови правоотношения"]
[3,null,"по служебни правоотношения"]
[3,null,"Средногодишни щатни бройки",null,{"$f":"SUM(E80:E81)","v":0},0,0,0,0,0]
[3,null,"по  трудови правоотношения"]
[3,null,"по  служебни правоотношения"]
[3,null,"Щатни бройки на делегирани бюджети"]
[3,null,"Средногодишни щатни бройки на делегирани бюджети"]
[1]